Workbook

Sheet VALORES_ZA (hidden)
A1: COD. PROVINCIA | B1: PROVINCIA | C1: Cod PROV+MUN | D1: Orden | E1: MUNICIPIO | F1: AM-F | G1: C | H1: O | I1: V | J1: PD | K1: CR | L1: FR | M1: AR | N1: OR | O1: VR | P1: FE | Q1: EP | R1: MB-MT | S1: MM | T1: RI
A2: 50 | B2: ZARAGOZA | C2: 50001 | D2: 1 | E2: ABANTO | S2: 1000 | T2: 750 | U2: 1
A3: 50 | B3: ZARAGOZA | C3: 50002 | D3: 2 | E3: ACERED | S3: 1000 | T3: 750
A4: 50 | B4: ZARAGOZA | C4: 50003 | D4: 3 | E4: AGÓN | J4: 2500 | S4: 750 | T4: 500
A5: 50 | B5: ZARAGOZA | C5: 50004 | D5: 4 | E5: AGUARÓN | S5: 1000 | T5: 600
A6: 50 | B6: ZARAGOZA | C6: 50005 | D6: 5 | E6: AGUILÓN | S6: 1000 | T6: 750
A7: 50 | B7: ZARAGOZA | C7: 50006 | D7: 6 | E7: AINZÓN | S7: 750 | T7: 500
A8: 50 | B8: ZARAGOZA | C8: 50007 | D8: 7 | E8: ALADRÉN | S8: 750 | T8: 500
A9: 50 | B9: ZARAGOZA | C9: 50008 | D9: 8 | E9: ALAGÓN | F9: 4000 | H9: 3000 | L9: 15000 | M9: 12500 | P9: 6654.224 | Q9: 300 | R9: 300 | S9: 850 | T9: 500
A10: 50 | B10: ZARAGOZA | C10: 50009 | D10: 9 | E10: ALARBA | S10: 650 | T10: 400
A11: 50 | B11: ZARAGOZA | C11: 50010 | D11: 10 | E11: ALBERITE DE SAN JUAN | S11: 750 | T11: 500
A12: 50 | B12: ZARAGOZA | C12: 50011 | D12: 11 | E12: ALBETA | S12: 750 | T12: 500
A13: 50 | B13: ZARAGOZA | C13: 50012 | D13: 12 | E13: ALBORGE | T13: 400
A14: 50 | B14: ZARAGOZA | C14: 50013 | D14: 13 | E14: ALCALÁ DE EBRO | J14: 2500 | L14: 15000 | N14: 12500 | Q14: 250 | R14: 250 | S14: 750 | T14: 500
A15: 50 | B15: ZARAGOZA | C15: 50014 | D15: 14 | E15: ALCALÁ DE MONCAYO | S15: 650 | T15: 400
A16: 50 | B16: ZARAGOZA | C16: 50015 | D16: 15 | E16: ALCONCHEL DE ARIZA | S16: 1000 | T16: 600
A17: 50 | B17: ZARAGOZA | C17: 50016 | D17: 16 | E17: ALDEHUELA DE LIESTOS | F17: 4500 | J17: 4000 | P17: 7684.916 | Q17: 400 | R17: 400 | S17: 1000 | T17: 750
A18: 50 | B18: ZARAGOZA | C18: 50017 | D18: 17 | E18: ALFAJARÍN | J18: 2500 | L18: 18500 | M18: 12500 | P18: 6337.088 | Q18: 250 | R18: 250 | S18: 750 | T18: 500
A19: 50 | B19: ZARAGOZA | C19: 50018 | D19: 18 | E19: ALFAMÉN | S19: 750 | T19: 500
A20: 50 | B20: ZARAGOZA | C20: 50019 | D20: 19 | E20: ALFORQUE | I20: 4000 | T20: 400
A21: 50 | B21: ZARAGOZA | C21: 50020 | D21: 20 | E21: ALHAMA DE ARAGÓN | S21: 750 | T21: 500
A22: 50 | B22: ZARAGOZA | C22: 50021 | D22: 21 | E22: ALMOCHUEL | I22: 4000 | L22: 10000 | M22: 7500 | O22: 8500 | P22: 5649.96 | R22: 250 | S22: 500 | T22: 400
A23: 50 | B23: ZARAGOZA | C23: 50022 | D23: 22 | E23: ALMOLDA (LA) | F23: 3000 | H23: 3000 | I23: 4000 | L23: 15000 | M23: 12500 | N23: 12500 | P23: 6337.088 | Q23: 250 | R23: 250 | S23: 750 | T23: 500
A24: 50 | B24: ZARAGOZA | C24: 50023 | D24: 23 | E24: ALMONACID DE LA CUBA | I24: 4000 | J24: 2000 | L24: 10000 | M24: 7500 | O24: 8500 | P24: 6019.952 | R24: 250 | S24: 650 | T24: 400
A25: 50 | B25: ZARAGOZA | C25: 50024 | D25: 24 | E25: ALMONACID DE LA SIERRA | S25: 850 | T25: 600
A26: 50 | B26: ZARAGOZA | C26: 50025 | D26: 25 | E26: ALMUNIA DE DOÑA GODINA (LA) | S26: 850 | T26: 600
A27: 50 | B27: ZARAGOZA | C27: 50026 | D27: 26 | E27: ALPARTIR | S27: 850 | T27: 600
A28: 50 | B28: ZARAGOZA | C28: 50027 | D28: 27 | E28: AMBEL | S28: 750 | T28: 500
A29: 50 | B29: ZARAGOZA | C29: 50028 | D29: 28 | E29: ANENTO | S29: 1000 | T29: 750
A30: 50 | B30: ZARAGOZA | C30: 50029 | D30: 29 | E30: ANIÑÓN | S30: 650 | T30: 400
A31: 50 | B31: ZARAGOZA | C31: 50030 | D31: 30 | E31: AÑÓN DE MONCAYO | S31: 550 | T31: 400
A32: 50 | B32: ZARAGOZA | C32: 50031 | D32: 31 | E32: ARANDA DE MONCAYO | S32: 500 | T32: 400
A33: 50 | B33: ZARAGOZA | C33: 50032 | D33: 32 | E33: ARÁNDIGA | S33: 650 | T33: 400
A34: 50 | B34: ZARAGOZA | C34: 50033 | D34: 33 | E34: ARDISA | H34: 4000 | L34: 12500 | N34: 8500 | Q34: 400 | R34: 400 | S34: 1000 | T34: 750
A35: 50 | B35: ZARAGOZA | C35: 50034 | D35: 34 | E35: ARIZA | S35: 850 | T35: 500
A36: 50 | B36: ZARAGOZA | C36: 50035 | D36: 35 | E36: ARTIEDA | F36: 4500 | L36: 10000 | M36: 7500 | P36: 7605.632 | T36: 750
A37: 50 | B37: ZARAGOZA | C37: 50036 | D37: 36 | E37: ASÍN | H37: 3500 | I37: 5000 | L37: 10000 | M37: 7500 | N37: 7500 | P37: 6971.36 | T37: 600
A38: 50 | B38: ZARAGOZA | C38: 50037 | D38: 37 | E38: ATEA | S38: 1000 | T38: 750
A39: 50 | B39: ZARAGOZA | C39: 50038 | D39: 38 | E39: ATECA | S39: 750 | T39: 500
A40: 50 | B40: ZARAGOZA | C40: 50039 | D40: 39 | E40: AZUARA | I40: 4500 | J40: 2500 | L40: 10000 | M40: 8500 | O40: 8500 | P40: 6337.088 | R40: 250 | S40: 750 | T40: 500
A41: 50 | B41: ZARAGOZA | C41: 50040 | D41: 40 | E41: BADULES | S41: 1000 | T41: 600
A42: 50 | B42: ZARAGOZA | C42: 50041 | D42: 41 | E42: BAGÜÉS | F42: 4000 | I42: 5000 | L42: 10000 | M42: 7500 | P42: 6971.36 | T42: 600
A43: 50 | B43: ZARAGOZA | C43: 50042 | D43: 42 | E43: BALCONCHÁN | S43: 1000 | T43: 750
A44: 50 | B44: ZARAGOZA | C44: 50043 | D44: 43 | E44: BÁRBOLES | J44: 2000 | S44: 650 | T44: 400
A45: 50 | B45: ZARAGOZA | C45: 50044 | D45: 44 | E45: BARDALLUR | J45: 2000 | S45: 650 | T45: 400
A46: 50 | B46: ZARAGOZA | C46: 50045 | D46: 45 | E46: BELCHITE | I46: 4000 | L46: 10000 | M46: 7500 | O46: 8500 | P46: 5649.96 | R46: 250 | S46: 500 | T46: 400
A47: 50 | B47: ZARAGOZA | C47: 50046 | D47: 46 | E47: BELMONTE DE GRACIÁN | S47: 650 | T47: 400
A48: 50 | B48: ZARAGOZA | C48: 50047 | D48: 47 | E48: BERDEJO | S48: 600 | T48: 400
A49: 50 | B49: ZARAGOZA | C49: 50048 | D49: 48 | E49: BERRUECO | F49: 5000 | H49: 4500 | P49: 8054.908 | Q49: 400 | R49: 400 | S49: 1250 | T49: 800
A50: 50 | B50: ZARAGOZA | C50: 50049 | D50: 49 | E50: BIEL-FUENCALDERAS | F50: 4500 | L50: 10000 | M50: 7500 | P50: 7605.632 | T50: 750
A51: 50 | B51: ZARAGOZA | C51: 50050 | D51: 50 | E51: BIJUESCA | S51: 600 | T51: 400
A52: 50 | B52: ZARAGOZA | C52: 50051 | D52: 51 | E52: BIOTA | H52: 3500 | I52: 5000 | L52: 12500 | N52: 10000 | O52: 9000 | Q52: 300 | R52: 300 | S52: 1000 | T52: 600
A53: 50 | B53: ZARAGOZA | C53: 50052 | D53: 52 | E53: BISIMBRE | S53: 750 | T53: 500
A54: 50 | B54: ZARAGOZA | C54: 50053 | D54: 53 | E54: BOQUIÑENI | H54: 3000 | L54: 15000 | N54: 12500 | O54: 12500 | Q54: 250 | R54: 250 | S54: 750 | T54: 500
A55: 50 | B55: ZARAGOZA | C55: 50054 | D55: 54 | E55: BORDALBA | S55: 1000 | T55: 600
A56: 50 | B56: ZARAGOZA | C56: 50055 | D56: 55 | E56: BORJA | S56: 750 | T56: 500
A57: 50 | B57: ZARAGOZA | C57: 50056 | D57: 56 | E57: BOTORRITA | F57: 4000 | H57: 3000 | I57: 4500 | L57: 12500 | M57: 8500 | O57: 10000 | P57: 6654.224 | Q57: 300 | R57: 300 | S57: 850 | T57: 500
A58: 50 | B58: ZARAGOZA | C58: 50057 | D58: 57 | E58: BREA DE ARAGÓN | S58: 500 | T58: 400
A59: 50 | B59: ZARAGOZA | C59: 50058 | D59: 58 | E59: BUBIERCA | S59: 750 | T59: 500
A60: 50 | B60: ZARAGOZA | C60: 50059 | D60: 59 | E60: BUJARALOZ | F60: 3000 | H60: 3000 | I60: 4500 | L60: 15000 | M60: 12500 | N60: 12500 | P60: 6376.73 | Q60: 250 | R60: 250 | S60: 750 | T60: 500
A61: 50 | B61: ZARAGOZA | C61: 50060 | D61: 60 | E61: BULBUENTE | S61: 750 | T61: 500
A62: 50 | B62: ZARAGOZA | C62: 50061 | D62: 61 | E62: BURETA | S62: 750 | T62: 500
A63: 50 | B63: ZARAGOZA | C63: 50062 | D63: 62 | E63: BURGO DE EBRO (EL) | L63: 18500 | M63: 12500 | O63: 15000 | P63: 6971.36 | Q63: 300 | R63: 300 | S63: 1000 | T63: 600
A64: 50 | B64: ZARAGOZA | C64: 50063 | D64: 63 | E64: BUSTE (EL) | S64: 500 | T64: 400
A65: 50 | B65: ZARAGOZA | C65: 50064 | D65: 64 | E65: CABAÑAS DE EBRO | J65: 2850 | L65: 15000 | N65: 12500 | Q65: 300 | R65: 300 | S65: 850 | T65: 500
A66: 50 | B66: ZARAGOZA | C66: 50065 | D66: 65 | E66: CABOLAFUENTE | S66: 1000 | T66: 600
A67: 50 | B67: ZARAGOZA | C67: 50066 | D67: 66 | E67: CADRETE | F67: 4000 | I67: 5000 | L67: 18500 | M67: 12500 | O67: 15000 | P67: 6971.36 | Q67: 300 | R67: 300 | S67: 1000 | T67: 600
A68: 50 | B68: ZARAGOZA | C68: 50067 | D68: 67 | E68: CALATAYUD | J68: 2500 | S68: 750 | T68: 500
A69: 50 | B69: ZARAGOZA | C69: 50068 | D69: 68 | E69: CALATORAO | S69: 750 | T69: 500
A70: 50 | B70: ZARAGOZA | C70: 50069 | D70: 69 | E70: CALCENA | S70: 550 | T70: 400
A71: 50 | B71: ZARAGOZA | C71: 50070 | D71: 70 | E71: CALMARZA | S71: 1000 | T71: 600
A72: 50 | B72: ZARAGOZA | C72: 50071 | D72: 71 | E72: CAMPILLO DE ARAGÓN | S72: 1000 | T72: 600
A73: 50 | B73: ZARAGOZA | C73: 50072 | D73: 72 | E73: CARENAS | S73: 750 | T73: 500
A74: 50 | B74: ZARAGOZA | C74: 50073 | D74: 73 | E74: CARIÑENA | S74: 1000 | T74: 600
A75: 50 | B75: ZARAGOZA | C75: 50074 | D75: 74 | E75: CASPE | I75: 5000 | O75: 9000 | T75: 500
A76: 50 | B76: ZARAGOZA | C76: 50075 | D76: 75 | E76: CASTEJÓN DE ALARBA | S76: 650 | T76: 400
A77: 50 | B77: ZARAGOZA | C77: 50076 | D77: 76 | E77: CASTEJÓN DE LAS ARMAS | S77: 750 | T77: 500
A78: 50 | B78: ZARAGOZA | C78: 50077 | D78: 77 | E78: CASTEJÓN DE VALDEJASA | H78: 3000 | I78: 5000 | Q78: 300 | R78: 300 | S78: 850 | T78: 500
A79: 50 | B79: ZARAGOZA | C79: 50078 | D79: 78 | E79: CASTILISCAR | F79: 4000 | H79: 3500 | I79: 5000 | L79: 10000 | M79: 8500 | N79: 8500 | P79: 6971.36 | T79: 600
A80: 50 | B80: ZARAGOZA | C80: 50079 | D80: 79 | E80: CERVERA DE LA CAÑADA | S80: 650 | T80: 400
A81: 50 | B81: ZARAGOZA | C81: 50080 | D81: 80 | E81: CERVERUELA | S81: 1000 | T81: 750
A82: 50 | B82: ZARAGOZA | C82: 50081 | D82: 81 | E82: CETINA | J82: 2500 | S82: 750 | T82: 500
A83: 50 | B83: ZARAGOZA | C83: 50082 | D83: 82 | E83: CIMBALLA | S83: 1000 | T83: 600
A84: 50 | B84: ZARAGOZA | C84: 50083 | D84: 83 | E84: CINCO OLIVAS | I84: 4000 | T84: 400
A85: 50 | B85: ZARAGOZA | C85: 50084 | D85: 84 | E85: CLARÉS DE RIBOTA | S85: 600 | T85: 400
A86: 50 | B86: ZARAGOZA | C86: 50085 | D86: 85 | E86: CODO | L86: 10000 | M86: 7500 | O86: 8500 | P86: 5649.96 | R86: 250 | S86: 500 | T86: 400
A87: 50 | B87: ZARAGOZA | C87: 50086 | D87: 86 | E87: CODOS | S87: 750 | T87: 500
A88: 50 | B88: ZARAGOZA | C88: 50087 | D88: 87 | E88: CONTAMINA | J88: 2500 | S88: 750 | T88: 500
A89: 50 | B89: ZARAGOZA | C89: 50088 | D89: 88 | E89: COSUENDA | S89: 1000 | T89: 600
A90: 50 | B90: ZARAGOZA | C90: 50089 | D90: 89 | E90: CUARTE DE HUERVA | F90: 4000 | I90: 5000 | L90: 18500 | M90: 12500 | O90: 15000 | P90: 6971.36 | Q90: 300 | R90: 300 | S90: 1000 | T90: 600
A91: 50 | B91: ZARAGOZA | C91: 50090 | D91: 90 | E91: CUBEL | F91: 5000 | J91: 4500 | P91: 8424.9 | Q91: 450 | R91: 450 | S91: 1250 | T91: 900
A92: 50 | B92: ZARAGOZA | C92: 50091 | D92: 91 | E92: CUERLAS (LAS) | F92: 5000 | J92: 4500 | P92: 8054.908 | Q92: 400 | R92: 400 | S92: 1250 | T92: 800
A93: 50 | B93: ZARAGOZA | C93: 50092 | D93: 92 | E93: CHIPRANA | J93: 2500 | T93: 500
A94: 50 | B94: ZARAGOZA | C94: 50093 | D94: 93 | E94: CHODES | S94: 650 | T94: 400
A95: 50 | B95: ZARAGOZA | C95: 50094 | D95: 94 | E95: DAROCA | J95: 3000 | S95: 1000 | T95: 600
A96: 50 | B96: ZARAGOZA | C96: 50095 | D96: 95 | E96: EJEA DE LOS CABALLEROS | H96: 3500 | I96: 5000 | J96: 3000 | L96: 15000 | N96: 12500 | O96: 12500 | Q96: 300 | R96: 300 | S96: 1000 | T96: 600
A97: 50 | B97: ZARAGOZA | C97: 50096 | D97: 96 | E97: EMBID DE ARIZA | S97: 750 | T97: 500
A98: 50 | B98: ZARAGOZA | C98: 50098 | D98: 97 | E98: ENCINACORBA | S98: 1000 | T98: 600
A99: 50 | B99: ZARAGOZA | C99: 50099 | D99: 98 | E99: ÉPILA | J99: 2500 | S99: 750 | T99: 500
A100: 50 | B100: ZARAGOZA | C100: 50100 | D100: 99 | E100: ERLA | I100: 5000 | L100: 12500 | N100: 10000 | O100: 9000 | Q100: 300 | R100: 300 | S100: 1000 | T100: 600
A101: 50 | B101: ZARAGOZA | C101: 50101 | D101: 100 | E101: ESCATRÓN | I101: 4000 | L101: 15000 | M101: 8500 | O101: 9000 | P101: 5848.17 | R101: 250 | S101: 600 | T101: 400
A102: 50 | B102: ZARAGOZA | C102: 50103 | D102: 101 | E102: FABARA | I102: 5000 | O102: 9000 | T102: 500
A103: 50 | B103: ZARAGOZA | C103: 50105 | D103: 102 | E103: FARLETE | F103: 3000 | I103: 4500 | P103: 6337.088 | Q103: 250 | R103: 250 | S103: 750 | T103: 500
A104: 50 | B104: ZARAGOZA | C104: 50106 | D104: 103 | E104: FAYÓN | I104: 5000 | T104: 500
A105: 50 | B105: ZARAGOZA | C105: 50107 | D105: 104 | E105: FAYOS (LOS) | S105: 550 | T105: 400
A106: 50 | B106: ZARAGOZA | C106: 50108 | D106: 105 | E106: FIGUERUELAS | F106: 4000 | H106: 3000 | L106: 15000 | M106: 12500 | O106: 12500 | P106: 6654.224 | Q106: 300 | R106: 300 | S106: 850 | T106: 500
A107: 50 | B107: ZARAGOZA | C107: 50109 | D107: 106 | E107: FOMBUENA | S107: 1000 | T107: 600
A108: 50 | B108: ZARAGOZA | C108: 50110 | D108: 107 | E108: FRAGO (EL) | F108: 4000 | H108: 3500 | L108: 10000 | M108: 7500 | P108: 6971.36 | T108: 600
A109: 50 | B109: ZARAGOZA | C109: 50111 | D109: 108 | E109: FRASNO (EL) | S109: 650 | T109: 400
A110: 50 | B110: ZARAGOZA | C110: 50112 | D110: 109 | E110: FRÉSCANO | S110: 750 | T110: 500
A111: 50 | B111: ZARAGOZA | C111: 50114 | D111: 110 | E111: FUENDEJALÓN | S111: 750 | T111: 500
A112: 50 | B112: ZARAGOZA | C112: 50115 | D112: 111 | E112: FUENDETODOS | I112: 4000 | L112: 10000 | M112: 7500 | P112: 6019.952 | R112: 250 | S112: 650 | T112: 400
A113: 50 | B113: ZARAGOZA | C113: 50116 | D113: 112 | E113: FUENTES DE EBRO | F113: 2500 | H113: 3000 | I113: 4000 | J113: 2000 | L113: 15000 | M113: 12500 | O113: 15000 | P113: 5848.17 | Q113: 250 | R113: 250 | S113: 600 | T113: 400
A114: 50 | B114: ZARAGOZA | C114: 50117 | D114: 113 | E114: FUENTES DE JILOCA | J114: 2000 | S114: 650 | T114: 400
A115: 50 | B115: ZARAGOZA | C115: 50118 | D115: 114 | E115: GALLOCANTA | F115: 5000 | P115: 8054.908 | Q115: 400 | R115: 400 | S115: 1250 | T115: 800
A116: 50 | B116: ZARAGOZA | C116: 50119 | D116: 115 | E116: GALLUR | I116: 4000 | L116: 15000 | N116: 12500 | O116: 12500 | Q116: 250 | R116: 250 | S116: 750 | T116: 500
A117: 50 | B117: ZARAGOZA | C117: 50120 | D117: 116 | E117: GELSA | F117: 3000 | H117: 3000 | I117: 4000 | L117: 15000 | M117: 12500 | P117: 6046.38 | Q117: 250 | R117: 250 | S117: 650 | T117: 400
A118: 50 | B118: ZARAGOZA | C118: 50121 | D118: 117 | E118: GODOJOS | S118: 750 | T118: 500
A119: 50 | B119: ZARAGOZA | C119: 50122 | D119: 118 | E119: GOTOR | S119: 500 | T119: 400
A120: 50 | B120: ZARAGOZA | C120: 50123 | D120: 119 | E120: GRISEL | S120: 550 | T120: 400
A121: 50 | B121: ZARAGOZA | C121: 50124 | D121: 120 | E121: GRISÉN | L121: 15000 | M121: 12500 | O121: 12500 | P121: 6337.088 | Q121: 250 | R121: 250 | S121: 750 | T121: 500
A122: 50 | B122: ZARAGOZA | C122: 50125 | D122: 121 | E122: HERRERA DE LOS NAVARROS | S122: 1000 | T122: 600
A123: 50 | B123: ZARAGOZA | C123: 50126 | D123: 122 | E123: IBDES | S123: 750 | T123: 500
A124: 50 | B124: ZARAGOZA | C124: 50127 | D124: 123 | E124: ILLUECA | S124: 500 | T124: 400
A125: 50 | B125: ZARAGOZA | C125: 50129 | D125: 124 | E125: ISUERRE | F125: 4000 | I125: 5000 | L125: 10000 | M125: 7500 | P125: 6971.36 | T125: 600
A126: 50 | B126: ZARAGOZA | C126: 50130 | D126: 125 | E126: JARABA | S126: 750 | T126: 500
A127: 50 | B127: ZARAGOZA | C127: 50131 | D127: 126 | E127: JARQUE | S127: 500 | T127: 400
A128: 50 | B128: ZARAGOZA | C128: 50132 | D128: 127 | E128: JAULÍN | I128: 4000 | P128: 6019.952 | R128: 250 | S128: 650 | T128: 400
A129: 50 | B129: ZARAGOZA | C129: 50133 | D129: 128 | E129: JOYOSA (LA) | J129: 3000 | L129: 15000 | M129: 12500 | O129: 12500 | P129: 6971.36 | Q129: 300 | R129: 300 | S129: 1000 | T129: 600
A130: 50 | B130: ZARAGOZA | C130: 50134 | D130: 129 | E130: LAGATA | I130: 4000 | L130: 10000 | M130: 7500 | O130: 8500 | P130: 6019.952 | R130: 250 | S130: 650 | T130: 400
A131: 50 | B131: ZARAGOZA | C131: 50135 | D131: 130 | E131: LANGA DEL CASTILLO | S131: 1250 | T131: 800
A132: 50 | B132: ZARAGOZA | C132: 50136 | D132: 131 | E132: LAYANA | F132: 4000 | L132: 10000 | M132: 7500 | P132: 6971.36 | T132: 600
A133: 50 | B133: ZARAGOZA | C133: 50137 | D133: 132 | E133: LÉCERA | I133: 5000 | L133: 10000 | M133: 7500 | O133: 10000 | P133: 6019.952 | R133: 250 | S133: 650 | T133: 400
A134: 50 | B134: ZARAGOZA | C134: 50138 | D134: 133 | E134: LECIÑENA | F134: 3000 | H134: 3000 | I134: 4500 | P134: 6337.088 | Q134: 250 | R134: 250 | S134: 750 | T134: 500
A135: 50 | B135: ZARAGOZA | C135: 50139 | D135: 134 | E135: LECHÓN | S135: 1000 | T135: 750
A136: 50 | B136: ZARAGOZA | C136: 50140 | D136: 135 | E136: LETUX | I136: 4000 | J136: 2000 | L136: 10000 | M136: 7500 | O136: 8500 | P136: 6019.952 | R136: 250 | S136: 650 | T136: 400
A137: 50 | B137: ZARAGOZA | C137: 50141 | D137: 136 | E137: LITAGO | S137: 550 | T137: 400
A138: 50 | B138: ZARAGOZA | C138: 50142 | D138: 137 | E138: LITUÉNIGO | S138: 550 | T138: 400
A139: 50 | B139: ZARAGOZA | C139: 50143 | D139: 138 | E139: LOBERA DE ONSELLA | F139: 4000 | I139: 5000 | L139: 10000 | M139: 7500 | P139: 6971.36 | T139: 600
A140: 50 | B140: ZARAGOZA | C140: 50144 | D140: 139 | E140: LONGARES | S140: 1000 | T140: 600
A141: 50 | B141: ZARAGOZA | C141: 50145 | D141: 140 | E141: LONGÁS | L141: 10000 | M141: 7500 | P141: 6971.36 | T141: 600
A142: 50 | B142: ZARAGOZA | C142: 50147 | D142: 141 | E142: LUCENA DE JALÓN | S142: 650 | T142: 400
A143: 50 | B143: ZARAGOZA | C143: 50148 | D143: 142 | E143: LUCENI | H143: 3000 | L143: 15000 | N143: 12500 | O143: 12500 | Q143: 250 | R143: 250 | S143: 750 | T143: 500
A144: 50 | B144: ZARAGOZA | C144: 50149 | D144: 143 | E144: LUESIA | F144: 4000 | H144: 3500 | I144: 5000 | L144: 10000 | M144: 7500 | P144: 6971.36 | T144: 600
A145: 50 | B145: ZARAGOZA | C145: 50150 | D145: 144 | E145: LUESMA | S145: 750 | T145: 500
A146: 50 | B146: ZARAGOZA | C146: 50151 | D146: 145 | E146: LUMPIAQUE | S146: 650 | T146: 400
A147: 50 | B147: ZARAGOZA | C147: 50152 | D147: 146 | E147: LUNA | H147: 3500 | I147: 5000 | L147: 12500 | N147: 10000 | O147: 9000 | Q147: 300 | R147: 300 | S147: 1000 | T147: 600
A148: 50 | B148: ZARAGOZA | C148: 50153 | D148: 147 | E148: MAELLA | I148: 5000 | O148: 9000 | T148: 500
A149: 50 | B149: ZARAGOZA | C149: 50154 | D149: 148 | E149: MAGALLÓN | S149: 750 | T149: 500
A150: 50 | B150: ZARAGOZA | C150: 50155 | D150: 149 | E150: MAINAR | S150: 1250 | T150: 800
A151: 50 | B151: ZARAGOZA | C151: 50156 | D151: 150 | E151: MALANQUILLA | S151: 600 | T151: 400
A152: 50 | B152: ZARAGOZA | C152: 50157 | D152: 151 | E152: MALEJÁN | S152: 750 | T152: 500
A153: 50 | B153: ZARAGOZA | C153: 50158 | D153: 152 | E153: MALÓN | S153: 750 | T153: 500
A154: 50 | B154: ZARAGOZA | C154: 50160 | D154: 153 | E154: MALUENDA | S154: 650 | T154: 400
A155: 50 | B155: ZARAGOZA | C155: 50161 | D155: 154 | E155: MALLÉN | H155: 3000 | I155: 5000 | L155: 15000 | N155: 12500 | O155: 12500 | Q155: 250 | R155: 250 | S155: 750 | T155: 500
A156: 50 | B156: ZARAGOZA | C156: 50162 | D156: 155 | E156: MANCHONES | S156: 850 | T156: 600
A157: 50 | B157: ZARAGOZA | C157: 50163 | D157: 156 | E157: MARA | S157: 650 | T157: 400
A158: 50 | B158: ZARAGOZA | C158: 50164 | D158: 157 | E158: MARÍA DE HUERVA | F158: 4000 | H158: 3500 | I158: 5000 | J158: 3000 | L158: 15000 | M158: 12500 | O158: 15000 | P158: 6971.36 | Q158: 300 | R158: 300 | S158: 1000 | T158: 600
A159: 50 | B159: ZARAGOZA | C159: 50165 | D159: 158 | E159: MEDIANA DE ARAGÓN | F159: 2500 | H159: 3000 | I159: 4000 | J159: 2000 | L159: 12500 | M159: 12500 | O159: 12500 | P159: 5848.17 | Q159: 250 | R159: 250 | S159: 600 | T159: 400
A160: 50 | B160: ZARAGOZA | C160: 50166 | D160: 159 | E160: MEQUINENZA | I160: 5000 | T160: 500
A161: 50 | B161: ZARAGOZA | C161: 50167 | D161: 160 | E161: MESONES DE ISUELA | S161: 650 | T161: 400
A162: 50 | B162: ZARAGOZA | C162: 50168 | D162: 161 | E162: MEZALOCHA | S162: 1000 | T162: 600
A163: 50 | B163: ZARAGOZA | C163: 50169 | D163: 162 | E163: MIANOS | F163: 4500 | I163: 5000 | L163: 10000 | M163: 7500 | P163: 7605.632 | T163: 750
A164: 50 | B164: ZARAGOZA | C164: 50170 | D164: 163 | E164: MIEDES DE ARAGÓN | S164: 650 | T164: 400
A165: 50 | B165: ZARAGOZA | C165: 50171 | D165: 164 | E165: MONEGRILLO | F165: 3000 | H165: 3000 | P165: 6337.088 | Q165: 250 | R165: 250 | S165: 750 | T165: 500
A166: 50 | B166: ZARAGOZA | C166: 50172 | D166: 165 | E166: MONEVA | I166: 4000 | L166: 10000 | M166: 7500 | P166: 6019.952 | R166: 250 | S166: 650 | T166: 400
A167: 50 | B167: ZARAGOZA | C167: 50173 | D167: 166 | E167: MONREAL DE ARIZA | J167: 2850 | S167: 850 | T167: 500
A168: 50 | B168: ZARAGOZA | C168: 50174 | D168: 167 | E168: MONTERDE | S168: 750 | T168: 500
A169: 50 | B169: ZARAGOZA | C169: 50175 | D169: 168 | E169: MONTÓN | J169: 2000 | S169: 650 | T169: 400
A170: 50 | B170: ZARAGOZA | C170: 50176 | D170: 169 | E170: MORATA DE JALÓN | S170: 650 | T170: 400
A171: 50 | B171: ZARAGOZA | C171: 50177 | D171: 170 | E171: MORATA DE JILOCA | S171: 650 | T171: 400
A172: 50 | B172: ZARAGOZA | C172: 50178 | D172: 171 | E172: MORÉS | S172: 500 | T172: 400
A173: 50 | B173: ZARAGOZA | C173: 50179 | D173: 172 | E173: MOROS | S173: 650 | T173: 400
A174: 50 | B174: ZARAGOZA | C174: 50180 | D174: 173 | E174: MOYUELA | I174: 4000 | L174: 10000 | M174: 7500 | O174: 8500 | P174: 6019.952 | R174: 250 | S174: 650 | T174: 400
A175: 50 | B175: ZARAGOZA | C175: 50181 | D175: 174 | E175: MOZOTA | F175: 3500 | H175: 3000 | I175: 4500 | L175: 10000 | M175: 8500 | O175: 10000 | P175: 6654.224 | Q175: 300 | R175: 300 | S175: 850 | T175: 500
A176: 50 | B176: ZARAGOZA | C176: 50182 | D176: 175 | E176: MUEL | S176: 850 | T176: 600
A177: 50 | B177: ZARAGOZA | C177: 50183 | D177: 176 | E177: MUELA (LA) | S177: 750 | T177: 500
A178: 50 | B178: ZARAGOZA | C178: 50184 | D178: 177 | E178: MUNÉBREGA | S178: 650 | T178: 400
A179: 50 | B179: ZARAGOZA | C179: 50185 | D179: 178 | E179: MURERO | S179: 850 | T179: 600
A180: 50 | B180: ZARAGOZA | C180: 50186 | D180: 179 | E180: MURILLO DE GÁLLEGO | F180: 4500 | H180: 4000 | I180: 5000 | L180: 10000 | M180: 8500 | P180: 7605.632 | R180: 400 | T180: 750
A181: 50 | B181: ZARAGOZA | C181: 50187 | D181: 180 | E181: NAVARDÚN | I181: 5000 | L181: 10000 | M181: 7500 | P181: 7605.632 | R181: 400 | T181: 750
A182: 50 | B182: ZARAGOZA | C182: 50188 | D182: 181 | E182: NIGÜELLA | S182: 650 | T182: 400
A183: 50 | B183: ZARAGOZA | C183: 50189 | D183: 182 | E183: NOMBREVILLA | S183: 1000 | T183: 750
A184: 50 | B184: ZARAGOZA | C184: 50190 | D184: 183 | E184: NONASPE | I184: 5000 | O184: 9000 | T184: 500
A185: 50 | B185: ZARAGOZA | C185: 50191 | D185: 184 | E185: NOVALLAS | S185: 750 | T185: 500
A186: 50 | B186: ZARAGOZA | C186: 50192 | D186: 185 | E186: NOVILLAS | H186: 3000 | I186: 4000 | L186: 12500 | N186: 12500 | O186: 12500 | Q186: 250 | R186: 250 | S186: 750 | T186: 500
A187: 50 | B187: ZARAGOZA | C187: 50193 | D187: 186 | E187: NUÉVALOS | S187: 750 | T187: 500
A188: 50 | B188: ZARAGOZA | C188: 50194 | D188: 187 | E188: NUEZ DE EBRO | J188: 2500 | L188: 15000 | M188: 12500 | P188: 6337.088 | Q188: 250 | R188: 250 | S188: 750 | T188: 500
A189: 50 | B189: ZARAGOZA | C189: 50195 | D189: 188 | E189: OLVÉS | S189: 650 | T189: 400
A190: 50 | B190: ZARAGOZA | C190: 50196 | D190: 189 | E190: ORCAJO | S190: 1000 | T190: 750
A191: 50 | B191: ZARAGOZA | C191: 50197 | D191: 190 | E191: ORERA | S191: 650 | T191: 400
A192: 50 | B192: ZARAGOZA | C192: 50198 | D192: 191 | E192: ORÉS | F192: 4000 | H192: 3500 | I192: 5000 | L192: 10000 | M192: 7500 | P192: 6971.36 | T192: 600
A193: 50 | B193: ZARAGOZA | C193: 50199 | D193: 192 | E193: OSEJA | S193: 550 | T193: 400
A194: 50 | B194: ZARAGOZA | C194: 50200 | D194: 193 | E194: OSERA DE EBRO | F194: 3000 | H194: 3000 | L194: 15000 | M194: 12500 | P194: 6337.088 | Q194: 250 | R194: 250 | S194: 750 | T194: 500
A195: 50 | B195: ZARAGOZA | C195: 50201 | D195: 194 | E195: PANIZA | S195: 1000 | T195: 600
A196: 50 | B196: ZARAGOZA | C196: 50202 | D196: 195 | E196: PARACUELLOS DE JILOCA | S196: 650 | T196: 400
A197: 50 | B197: ZARAGOZA | C197: 50203 | D197: 196 | E197: PARACUELLOS DE LA RIBERA | S197: 500 | T197: 400
A198: 50 | B198: ZARAGOZA | C198: 50204 | D198: 197 | E198: PASTRIZ | J198: 3000 | L198: 18500 | M198: 12500 | P198: 6971.36 | Q198: 300 | R198: 300 | S198: 1000 | T198: 600
A199: 50 | B199: ZARAGOZA | C199: 50205 | D199: 198 | E199: PEDROLA | H199: 3000 | I199: 4500 | J199: 2850 | L199: 15000 | N199: 12500 | O199: 12500 | Q199: 300 | R199: 300 | S199: 850 | T199: 500
A200: 50 | B200: ZARAGOZA | C200: 50206 | D200: 199 | E200: PEDROSAS (LAS) | H200: 3500 | I200: 5000 | Q200: 300 | R200: 300 | S200: 1000 | T200: 600
... 94 more rows

Sheet VALORES_TE (hidden)
B1: V A L O R E S | C1: Provincia de Teruel
B2: 2025 | C2: Precios aplicables a fincas rústicas en Euros por Hectárea
C3: Secanos | G3: Regadíos | L3: No cultivados
B4: PUEBLOS | C4: AM-F | D4: C | E4: O | F4: V | G4: CR | H4: FR | I4: AR | J4: OR | K4: VR | L4: EP | M4: MT-MB | N4: MM | O4: RI
A5: 1 | B5: ABABUJ | O5: 580 | P5: 1
A6: 2 | B6: ABEJUELA | C6: 2150 | O6: 500
A7: 3 | B7: AGUATÓN | O7: 530
A8: 4 | B8: AGUAVIVA | F8: 2500 | O8: 550
A9: 5 | B9: AGUILAR DEL ALFAMBRA | O9: 580
A10: 6 | B10: ALACÓN | F10: 2250 | J10: 9900 | K10: 6500 | O10: 580
A11: 7 | B11: ALBA DEL CAMPO | C11: 2500 | N11: 850 | O11: 580
A12: 8 | B12: ALBALATE DEL ARZOBISPO | F12: 2500 | H12: 9500 | I12: 10500 | K12: 10000 | N12: 850 | O12: 600
A13: 9 | B13: ALBARRACÍN | H13: 6700 | N13: 1350 | O13: 600
A14: 10 | B14: ALBENTOSA | C14: 2500 | O14: 550
A15: 11 | B15: ALCAINE | F15: 2250 | H15: 6200 | J15: 8600 | O15: 600
A16: 12 | B16: ALCALÁ DE LA SELVA | O16: 580
A17: 13 | B17: ALCAÑIZ | F17: 3100 | K17: 10500 | O17: 600
A18: 14 | B18: ALCORISA | F18: 2900 | K18: 9500 | O18: 550
A19: 15 | B19: ALFAMBRA | O19: 550
A20: 16 | B20: ALIAGA | O20: 580
A21: 17 | B21: ALMOHAJA | O21: 580
A22: 18 | B22: ALOBRAS | N22: 1100 | O22: 580
A23: 19 | B23: ALPEÑES | O23: 550
A24: 20 | B24: ALLEPUZ | O24: 550
A25: 21 | B25: ALLOZA | F25: 2300 | H25: 9000 | I25: 9100 | J25: 10800 | O25: 550
A26: 22 | B26: ALLUEVA | O26: 580
A27: 23 | B27: ANADÓN | O27: 580
A28: 24 | B28: ANDORRA | F28: 2300 | H28: 9000 | I28: 9100 | J28: 11200 | K28: 9100 | O28: 580
A29: 25 | B29: ARCOS DE LAS SALINAS | C29: 2200 | H29: 7000 | N29: 1050 | O29: 500
A30: 26 | B30: ARENS DE LLEDÓ | F30: 2700 | K30: 9100 | O30: 550
A31: 27 | B31: ARGENTE | O31: 550
A32: 28 | B32: ARIÑO | F32: 2250 | H32: 9000 | J32: 10300 | O32: 580
A33: 29 | B33: AZAILA | K33: 8000 | O33: 550
A34: 30 | B34: BADENAS | O34: 550
A35: 31 | B35: BÁGUENA | C35: 3400 | F35: 3000 | H35: 9000 | K35: 6500 | N35: 750 | O35: 550
A36: 32 | B36: BAÑÓN | O36: 550
A37: 33 | B37: BARRACHINA | H37: 7000 | O37: 550
A38: 34 | B38: BEA | O38: 600
A39: 35 | B39: BECEITE | F39: 2300 | O39: 600
A40: 36 | B40: BELMONTE DE SAN JOSÉ | F40: 2300 | O40: 600
A41: 37 | B41: BELLO | G41: 7450 | L41: 200 | M41: 200 | O41: 550
A42: 38 | B42: BERGE | F42: 2250 | H42: 9000 | I42: 9000 | J42: 12800 | K42: 8000 | O42: 550
A43: 39 | B43: BEZAS | N43: 1100 | O43: 580
A44: 40 | B44: BLANCAS | G44: 7450 | L44: 200 | M44: 200 | O44: 550
A45: 41 | B45: BLESA | F45: 2250 | O45: 580
A46: 42 | B46: BORDÓN | F46: 2100 | H46: 6500 | J46: 9100 | O46: 580
A47: 43 | B47: BRONCHALES | N47: 1300 | O47: 580
A48: 44 | B48: BUEÑA | O48: 500
A49: 45 | B49: BURBÁGUENA | C49: 3400 | F49: 3000 | H49: 9000 | K49: 6500 | N49: 750 | O49: 550
A50: 46 | B50: CABRA DE MORA | O50: 580
A51: 47 | B51: CALACEITE | F51: 3000 | K51: 8800 | O51: 550
A52: 48 | B52: CALAMOCHA | C52: 3500 | F52: 3000 | H52: 10400 | K52: 7800 | N52: 850 | O52: 580
A53: 49 | B53: CALANDA | F53: 3000 | K53: 9300 | O53: 550
A54: 50 | B54: CALOMARDE | N54: 1100 | O54: 580
A55: 51 | B55: CAMAÑAS | O55: 550
A56: 52 | B56: CAMARENA DE LA SIERRA | N56: 1100 | O56: 550
A57: 53 | B57: CAMARILLAS | H57: 6000 | O57: 550
A58: 54 | B58: CAMINREAL | C58: 3200 | O58: 580
A59: 55 | B59: CANTAVIEJA | O59: 580
A60: 56 | B60: CAÑADA DE BENATANDUZ | O60: 580
A61: 57 | B61: LA CAÑADA DE VERICH | F61: 2300 | O61: 550
A62: 58 | B62: CAÑADA VELLIDA | O62: 580
A63: 59 | B63: CAÑIZAR DEL OLIVAR | F63: 2200 | H63: 6500 | J63: 8000 | O63: 550
A64: 60 | B64: CASCANTE DEL RIO | C64: 1900 | H64: 6000 | O64: 550
A65: 61 | B65: CASTEJÓN DE TORNOS | H65: 8100 | O65: 580
A66: 62 | B66: CASTEL DE CABRA | H66: 7250 | O66: 600
A67: 63 | B67: CASTELNOU | F67: 2100 | H67: 9000 | K67: 7000 | N67: 880 | O67: 580
A68: 64 | B68: CASTELSERÁS | F68: 2500 | K68: 8150 | O68: 550
A69: 65 | B69: EL CASTELLAR | O69: 580
A70: 66 | B70: CASTELLOTE | F70: 2150 | H70: 9100 | J70: 9800 | K70: 7500 | O70: 600
A71: 67 | B71: CEDRILLAS | O71: 550
A72: 68 | B72: CELADAS | O72: 550
A73: 69 | B73: CELLA | C73: 2500 | H73: 7000 | O73: 580
A74: 70 | B74: LA CEROLLERA | F74: 2200 | O74: 580
A75: 71 | B75: LA CODOÑERA | F75: 2200 | O75: 580
A76: 72 | B76: CORBALÁN | O76: 550
A77: 73 | B77: CORTES DE ARAGÓN | F77: 2000 | H77: 6700 | J77: 7800 | O77: 600
A78: 74 | B78: COSA | O78: 600
A79: 75 | B79: CRETAS | F79: 3000 | K79: 10500 | O79: 550
A80: 76 | B80: CRIVILLÉN | F80: 2200 | J80: 10000 | O80: 600
A81: 77 | B81: LA CUBA | F81: 2200 | O81: 580
A82: 78 | B82: CUBLA | C82: 1900 | N82: 890 | O82: 550
A83: 79 | B83: CUCALÓN | H83: 6700 | I83: 7400 | O83: 600
A84: 80 | B84: EL CUERVO | C84: 2300 | F84: 2200 | N84: 1100 | O84: 550
A85: 81 | B85: CUEVAS DE ALMUDÉN | O85: 600
A86: 82 | B86: CUEVAS LABRADAS | H86: 7500 | I86: 8800 | O86: 600
A87: 83 | B87: EJULVE | O87: 600
A88: 84 | B88: ESCORIHUELA | O88: 600
A89: 85 | B89: ESCUCHA | O89: 580
A90: 86 | B90: ESTERCUEL | F90: 2100 | H90: 6000 | J90: 7500 | O90: 580
A91: 87 | B91: FERRERUELA DE HUERVA | H91: 7000 | N91: 950 | O91: 580
A92: 88 | B92: FONFRIA | O92: 600
A93: 89 | B93: FORMICHE ALTO | H93: 6700 | O93: 580
A94: 90 | B94: FORNOLES | F94: 2300 | K94: 8500 | O94: 550
A95: 91 | B95: FORTANETE | O95: 550
A96: 92 | B96: FOZ-CALANDA | F96: 2300 | K96: 8000 | O96: 550
A97: 93 | B97: LA FRESNEDA | F97: 2300 | K97: 9200 | O97: 550
A98: 94 | B98: FRIAS DE ALBARRACÍN | N98: 1250 | O98: 580
A99: 95 | B99: FUENFERRADA | H99: 6100 | O99: 600
A100: 96 | B100: FUENTES CALIENTES | O100: 600
A101: 97 | B101: FUENTES CLARAS | C101: 2900 | O101: 580
A102: 98 | B102: FUENTES DE RUBIELOS | O102: 580
A103: 99 | B103: FUENTESPALDA | F103: 2600 | O103: 580
A104: 100 | B104: GALVE | O104: 580
A105: 101 | B105: GARGALLO | F105: 2000 | H105: 7500 | J105: 10800 | O105: 600
A106: 102 | B106: GEA DE ALBARRACÍN | H106: 7500 | N106: 1100 | O106: 550
A107: 103 | B107: LA GINEBROSA | F107: 2200 | K107: 9000 | O107: 600
A108: 104 | B108: GRIEGOS | N108: 1200 | O108: 580
A109: 105 | B109: GUADALAVIAR | N109: 1200 | O109: 580
A110: 106 | B110: GUDAR | O110: 580
A111: 107 | B111: HIJAR | F111: 2400 | H111: 10000 | I111: 11600 | K111: 10500 | N111: 1000 | O111: 550
A112: 108 | B112: HINOJOSA DE JARQUE | O112: 600
A113: 109 | B113: LA HOZ DE LA VIEJA | F113: 2000 | H113: 6700 | J113: 8200 | O113: 600
A114: 110 | B114: HUESA DEL COMÚN | F114: 2000 | H114: 6700 | O114: 600
A115: 111 | B115: LA IGLESUELA DEL CID | O115: 580
A116: 112 | B116: JABALOYAS | N116: 950 | O116: 580
A117: 113 | B117: JARQUE DE LA VAL | H117: 6700 | O117: 600
A118: 114 | B118: JATIEL | F118: 2000 | H118: 8500 | N118: 900 | O118: 580
A119: 115 | B119: JORCAS | O119: 550
A120: 116 | B120: JOSA | F120: 2000 | H120: 6000 | I120: 7400 | J120: 7400 | K120: 6500 | O120: 600
A121: 117 | B121: LAGUERUELA | H121: 7000 | O121: 600
A122: 118 | B122: LANZUELA | O122: 600
A123: 119 | B123: LIBROS | C123: 2200 | H123: 7000 | O123: 550
A124: 120 | B124: LIDÓN | O124: 550
A125: 121 | B125: LINARES DE MORA | O125: 580
A126: 122 | B126: LOSCOS | F126: 2100 | O126: 580
A127: 123 | B127: LLEDÓ | F127: 2600 | O127: 600
A128: 124 | B128: MAICAS | O128: 600
A129: 125 | B129: MANZANERA | O129: 600
A130: 126 | B130: MARTÍN DEL RIO | O130: 600
A131: 127 | B131: MAS DE LAS MATAS | F131: 2400 | O131: 550
A132: 128 | B132: LA MATA DE LOS OLMOS | F132: 2100 | J132: 9400 | O132: 600
A133: 129 | B133: MAZALEÓN | F133: 2500 | K133: 10000 | O133: 550
A134: 130 | B134: MEZQUITA DE JARQUE | O134: 600
A135: 131 | B135: MIRAMBEL | H135: 6700 | O135: 580
A136: 132 | B136: MIRAVETE DE LA SIERRA | O136: 580
A137: 133 | B137: MOLINOS | H137: 9000 | I137: 8700 | J137: 9900 | K137: 8000 | O137: 600
A138: 134 | B138: MONFORTE DE MOYUELA | H138: 7300 | O138: 580
A139: 135 | B139: MONREAL DEL CAMPO | C139: 3000 | H139: 7800 | N139: 870 | O139: 580
A140: 136 | B140: MONROYO | F140: 2500 | K140: 8100 | O140: 550
A141: 137 | B141: MONTALBÁN | H141: 7800 | J141: 7900 | O141: 550
A142: 138 | B142: MONTEAGUDO DEL CASTILLO | O142: 600
A143: 139 | B143: MONTERDE DE ALBARRACÍN | N143: 1100 | O143: 580
A144: 140 | B144: MORA DE RUBIELOS | C144: 2800 | I144: 8700 | N144: 1100 | O144: 600
A145: 141 | B145: MOSCARDÓN | N145: 1200 | O145: 580
A146: 142 | B146: MOSQUERUELA | O146: 600
A147: 143 | B147: MUNIESA | F147: 2500 | I147: 8000 | K147: 7000 | O147: 600
A148: 144 | B148: NOGUERA DE ALBARRACÍN | H148: 6000 | N148: 1200 | O148: 580
A149: 145 | B149: NOGUERAS | O149: 580
A150: 146 | B150: NOGUERUELAS | O150: 580
A151: 147 | B151: OBÓN | F151: 2200 | H151: 6000 | J151: 7700 | O151: 600
A152: 148 | B152: ODÓN | C152: 3000 | G152: 7450 | L152: 200 | M152: 200 | O152: 550
A153: 149 | B153: OJOS NEGROS | C153: 2500 | F153: 2100 | G153: 7000 | L153: 200 | M153: 200 | O153: 580
A154: 150 | B154: OLBA | F154: 2000 | H154: 6500 | J154: 5800 | O154: 600
A155: 151 | B155: OLIETE | F155: 2000 | H155: 9000 | J155: 9400 | K155: 7200 | O155: 600
A156: 152 | B156: LOS OLMOS | J156: 9400 | K156: 7200 | O156: 600
A157: 153 | B157: ORIHUELA DEL TREMEDAL | N157: 1400 | O157: 550
A158: 154 | B158: ORRIOS | O158: 600
A159: 155 | B159: PALOMAR DE ARROYOS | O159: 580
A160: 156 | B160: PANCRUDO | O160: 600
A161: 157 | B161: LAS PARRAS DE CASTELLOTE | F161: 2000 | O161: 600
A162: 158 | B162: PEÑARROYA DE TASTAVINS | F162: 2600 | O162: 580
A163: 159 | B163: PERACENSE | O163: 580
A164: 160 | B164: PERALEJOS | O164: 600
A165: 161 | B165: PERALES DE ALFAMBRA | H165: 8300 | O165: 500
A166: 162 | B166: PITARQUE | H166: 6000 | O166: 580
A167: 163 | B167: PLOU | F167: 2100 | H167: 6600 | J167: 7500 | O167: 580
A168: 164 | B168: EL POBO | I168: 6500 | O168: 550
A169: 165 | B169: LA PORTELLADA | F169: 2300 | O169: 550
A170: 166 | B170: POZONDÓN | O170: 580
A171: 167 | B171: POZUEL DEL CAMPO | C171: 2200 | G171: 5700 | L171: 200 | M171: 200 | N171: 680 | O171: 550
A172: 168 | B172: LA PUEBLA DE HIJAR | H172: 9000 | I172: 10400 | K172: 8200 | N172: 900 | O172: 600
A173: 169 | B173: LA PUEBLA DE VALVERDE | C173: 2600 | N173: 1100 | O173: 600
A174: 170 | B174: PUERTOMINGALVO | O174: 580
A175: 171 | B175: RAFALES | F175: 2400 | K175: 7500 | O175: 600
A176: 172 | B176: RILLO | O176: 600
A177: 173 | B177: RIODEVA | F177: 2200 | N177: 900 | O177: 550
A178: 174 | B178: RÓDENAS | O178: 580
A179: 175 | B179: ROYUELA | H179: 6200 | N179: 1250 | O179: 580
A180: 176 | B180: RUBIALES | N180: 1050 | O180: 580
A181: 177 | B181: RUBIELOS DE LA CERIDA | O181: 550
A182: 178 | B182: RUBIELOS DE MORA | F182: 2300 | I182: 8900 | O182: 600
A183: 179 | B183: SALCEDILLO | O183: 600
A184: 180 | B184: SALDÓN | N184: 1050 | O184: 580
A185: 181 | B185: SAMPER DE CALANDA | F185: 2100 | H185: 10000 | I185: 10000 | K185: 8600 | O185: 580
A186: 182 | B186: SAN AGUSTÍN | H186: 5400 | O186: 580
A187: 183 | B187: SAN MARTÍN DEL RÍO | C187: 2700 | F187: 2700 | H187: 9000 | K187: 6500 | N187: 850 | O187: 550
A188: 184 | B188: SANTA CRUZ DE NOGUERAS | F188: 2100 | O188: 580
A189: 185 | B189: SANTA EULALIA | O189: 580
A190: 186 | B190: SARRIÓN | C190: 2700 | H190: 9000 | O190: 550
A191: 187 | B191: SEGURA DE BAÑOS | F191: 2200 | O191: 600
A192: 188 | B192: SENO | F192: 2100 | H192: 9000 | J192: 11700 | K192: 6500 | O192: 500
A193: 189 | B193: SINGRA | O193: 580
A194: 190 | B194: TERRIENTE | N194: 1050 | O194: 580
A195: 191 | B195: TERUEL | C195: 2800 | F195: 2500 | H195: 11500 | N195: 1150 | O195: 550
A196: 192 | B196: TORIL Y MASEGOSO | N196: 1050 | O196: 580
A197: 193 | B197: TORMÓN | N197: 1050 | O197: 580
A198: 194 | B198: TORNOS | C198: 2700 | G198: 7450 | L198: 200 | M198: 200 | N198: 900 | O198: 550
A199: 195 | B199: TORRALBA DE LOS SISONES | C199: 2700 | G199: 7450 | L199: 200 | M199: 200 | N199: 900 | O199: 550
A200: 196 | B200: TORRECILLA DE ALCAÑIZ | F200: 2700 | K200: 8700 | O200: 580
... 40 more rows

Sheet VALORES_HU (hidden)
B1: VALORES | C1: Provincia de Huesca
B2: VER LAS NORMAS DE APLICACIÓN DE VALORES MINIMOS INFORMATIVOS
B3: 2025 | C3: Precios aplicables a fincas rústicas en Euros por Hectarea
B4: PUEBLOS | C4: Secanos | H4: Regadíos | O4: No cultivables
C5: AM | D5: C | E5: O | F5: V | G5: PD | H5: CR | I5: FR | J5: HR | K5: PR | L5: AR | M5: OR | N5: VR | O5: E | P5: MB | Q5: MT | R5: MM | S5: RI
A6: 1 | B6: ABIEGO | G6: 5500 | I6: 14500 | L6: 12200 | M6: 11900 | N6: 15000 | Q6: 600 | R6: 1700 | S6: 1100 | T6: 1
A7: 2 | B7: ABIZANDA | C7: 5500 | E7: 5300 | F7: 7200 | I7: 14500 | L7: 10100 | M7: 9900 | N7: 12900 | Q7: 400 | S7: 900
A8: 3 | B8: ADAHUESCA | G8: 5500 | I8: 14500 | L8: 12200 | M8: 11900 | N8: 15000 | Q8: 600 | R8: 1700 | S8: 1100
A9: 4 | B9: AGUERO | C9: 4600 | E9: 5500 | F9: 6300 | I9: 14500 | L9: 12200 | M9: 11900 | N9: 15000 | Q9: 400 | S9: 800
A10: 5 | B10: AINSA-SOBRARBE | C10: 5800 | E10: 5500 | F10: 7500 | I10: 14500 | L10: 12300 | M10: 12000 | N10: 15100 | Q10: 500 | S10: 1000
A11: 6 | B11: AISA | C11: 5000 | E11: 4600 | F11: 6600 | I11: 14500 | L11: 10100 | M11: 9900 | N11: 12900 | Q11: 400 | S11: 800
A12: 7 | B12: ALBALATE DE CINCA | C12: 3400 | F12: 5100 | G12: 2300 | L12: 14500 | M12: 14200 | N12: 17300 | O12: 200 | P12: 200 | Q12: 200 | R12: 800 | S12: 600
A13: 8 | B13: ALBALATILLO | C13: 3200 | E13: 3000 | F13: 4800 | G13: 2100 | I13: 20800 | L13: 15600 | M13: 15400 | N13: 18400 | O13: 200 | P13: 200 | Q13: 200 | R13: 700 | S13: 400
A14: 9 | B14: ALBELDA | C14: 5500 | F14: 7200 | G14: 4400 | L14: 16800 | M14: 16600 | N14: 19600 | O14: 400 | P14: 400 | Q14: 400 | R14: 1300 | S14: 900
A15: 10 | B15: ALBERO ALTO | G15: 5100 | I15: 14500 | L15: 15600 | M15: 15400 | N15: 18400 | Q15: 500 | R15: 1500 | S15: 1100
A16: 11 | B16: ALBERO BAJO | C16: 5700 | E16: 5500 | F16: 7400 | G16: 4600 | I16: 14500 | L16: 15600 | M16: 15400 | N16: 18400 | O16: 500 | P16: 500 | Q16: 500 | R16: 1400 | S16: 1000
A17: 12 | B17: ALBERUELA DE TUBO | C17: 3600 | E17: 3400 | F17: 5300 | G17: 2500 | I17: 20800 | L17: 15600 | M17: 15400 | N17: 18400 | O17: 300 | P17: 300 | Q17: 300 | R17: 800 | S17: 600
A18: 13 | B18: ALCALA DE GURREA | G18: 4400 | I18: 14500 | L18: 13300 | M18: 13100 | N18: 16100 | Q18: 400 | R18: 1300 | S18: 900
A19: 14 | B19: ALCALA DEL OBISPO | G19: 5300 | I19: 14500 | L19: 13300 | M19: 13100 | N19: 16100 | Q19: 500 | R19: 1700 | S19: 1100
A20: 15 | B20: ALCAMPELL | C20: 5500 | F20: 7200 | G20: 4400 | L20: 16800 | M20: 16600 | N20: 19600 | O20: 400 | P20: 400 | Q20: 400 | R20: 1300 | S20: 900
A21: 16 | B21: ALCOLEA DE CINCA | C21: 3400 | F21: 5100 | G21: 2300 | L21: 14500 | M21: 14200 | N21: 17300 | O21: 200 | P21: 200 | Q21: 200 | R21: 800 | S21: 600
A22: 17 | B22: ALCUBIERRE | C22: 3200 | E22: 3000 | F22: 4800 | G22: 2100 | I22: 20800 | L22: 14500 | M22: 14200 | N22: 17300 | O22: 200 | P22: 200 | Q22: 200 | R22: 700 | S22: 400
A23: 18 | B23: ALERRE | G23: 5800 | I23: 14500 | L23: 12200 | M23: 11900 | N23: 15000 | Q23: 600 | R23: 1800 | S23: 1200
A24: 19 | B24: ALFANTEGA | C24: 5000 | F24: 6600 | G24: 3900 | L24: 14500 | M24: 14200 | N24: 17300 | O24: 400 | P24: 400 | Q24: 400 | R24: 1200 | S24: 800
A25: 20 | B25: ALMUDEVAR | G25: 4800 | I25: 14500 | L25: 15600 | M25: 15400 | N25: 18400 | Q25: 500 | R25: 1500 | S25: 1000
A26: 21 | B26: ALMUNIA DE SAN JUAN | C26: 5500 | F26: 7200 | G26: 4400 | L26: 16800 | M26: 16600 | N26: 19600 | O26: 400 | P26: 400 | Q26: 400 | R26: 1300 | S26: 900
A27: 22 | B27: ALMUNIENTE | C27: 4100 | E27: 3700 | F27: 5700 | G27: 3000 | I27: 14500 | L27: 14500 | M27: 14200 | N27: 17300 | O27: 300 | P27: 300 | Q27: 300 | R27: 900 | S27: 700
A28: 23 | B28: ALQUEZAR | G28: 3500 | I28: 14500 | L28: 12200 | M28: 11900 | N28: 15000 | Q28: 400 | R28: 1100 | S28: 800
A29: 24 | B29: ALTORRICON | C29: 5000 | F29: 6600 | G29: 3900 | L29: 16800 | M29: 16600 | N29: 19600 | O29: 400 | P29: 400 | Q29: 400 | R29: 1200 | S29: 800
A30: 25 | B30: ANGUES | G30: 5300 | I30: 14500 | L30: 12200 | M30: 11900 | N30: 15000 | Q30: 500 | R30: 1700 | S30: 1100
A31: 26 | B31: ANSO | C31: 5000 | E31: 4600 | F31: 6600 | I31: 14500 | L31: 10100 | M31: 9900 | N31: 12900 | Q31: 400 | S31: 800
A32: 27 | B32: ANTILLON | G32: 5300 | I32: 14500 | L32: 12200 | M32: 11900 | N32: 15000 | Q32: 500 | R32: 1700 | S32: 1100
A33: 28 | B33: CALDEARENAS | C33: 5300 | E33: 5000 | F33: 6900 | I33: 14500 | L33: 11200 | M33: 11000 | N33: 14000 | Q33: 400 | S33: 900
A34: 29 | B34: ARAGUES DEL PUERTO | C34: 5000 | E34: 4600 | F34: 6600 | I34: 14500 | L34: 10100 | M34: 9900 | N34: 12900 | Q34: 400 | S34: 800
A35: 30 | B35: AREN | C35: 4600 | E35: 4400 | F35: 6300 | I35: 14500 | L35: 11200 | M35: 11000 | N35: 14000 | Q35: 400 | S35: 800
A36: 31 | B36: ARGAVIESO | G36: 5300 | I36: 14500 | L36: 12200 | M36: 11900 | N36: 15000 | Q36: 500 | R36: 1700 | S36: 1100
A37: 32 | B37: ARGUIS | C37: 4600 | E37: 4300 | F37: 6300 | I37: 14500 | L37: 11000 | M37: 10700 | N37: 13800 | Q37: 400 | S37: 800
A38: 33 | B38: AYERBE | G38: 5300 | I38: 14500 | L38: 12200 | M38: 11900 | N38: 15000 | Q38: 500 | R38: 1700 | S38: 1100
A39: 34 | B39: AZANUY-ALINS | G39: 4400 | I39: 20800 | L39: 12200 | M39: 11900 | N39: 15000 | Q39: 400 | R39: 1300 | S39: 900
A40: 35 | B40: AZARA | G40: 5100 | I40: 14500 | L40: 12200 | M40: 11900 | N40: 15000 | Q40: 500 | R40: 1500 | S40: 1100
A41: 36 | B41: AZLOR | G41: 5100 | I41: 14500 | L41: 12200 | M41: 11900 | N41: 15000 | Q41: 500 | R41: 1500 | S41: 1100
A42: 37 | B42: BAELLS | G42: 4200 | I42: 20800 | L42: 12200 | M42: 11900 | N42: 15000 | Q42: 400 | R42: 1300 | S42: 900
A43: 38 | B43: BAILO | C43: 5300 | E43: 5000 | F43: 6900 | I43: 14500 | L43: 11200 | M43: 11000 | N43: 14000 | Q43: 400 | S43: 900
A44: 39 | B44: BALDELLOU | G44: 4200 | I44: 20800 | L44: 12200 | M44: 11900 | N44: 15000 | Q44: 400 | R44: 1300 | S44: 900
A45: 40 | B45: BALLOBAR | C45: 3200 | E45: 3000 | F45: 4800 | G45: 2100 | I45: 20800 | L45: 15600 | M45: 15400 | N45: 18400 | O45: 200 | P45: 200 | Q45: 200 | R45: 700 | S45: 400
A46: 41 | B46: BANASTAS | G46: 5800 | I46: 14500 | L46: 12200 | M46: 11900 | N46: 15000 | Q46: 600 | R46: 1800 | S46: 1200
A47: 42 | B47: BARBASTRO | G47: 5100 | I47: 14500 | L47: 15600 | M47: 15400 | N47: 18400 | Q47: 500 | R47: 1500 | S47: 1100
A48: 43 | B48: BARBUES | C48: 5300 | E48: 5100 | F48: 6900 | G48: 4200 | I48: 14500 | L48: 14500 | M48: 14200 | N48: 17300 | O48: 400 | P48: 400 | Q48: 400 | R48: 1300 | S48: 900
A49: 44 | B49: BARBUÑALES | G49: 4600 | I49: 14500 | L49: 12200 | M49: 11900 | N49: 15000 | Q49: 500 | R49: 1400 | S49: 1000
A50: 45 | B50: BARCABO | C50: 4600 | E50: 5000 | F50: 6300 | I50: 14500 | L50: 11000 | M50: 10700 | N50: 13800 | Q50: 400 | S50: 800
A51: 46 | B51: BELVER | C51: 3400 | E51: 3200 | F51: 5100 | G51: 2300 | L51: 15600 | M51: 15400 | N51: 18400 | O51: 200 | P51: 200 | Q51: 200 | R51: 800 | S51: 600
A52: 47 | B52: BENABARRE | G52: 4700 | I52: 14500 | L52: 11200 | M52: 11000 | N52: 14000 | Q52: 500 | R52: 1400 | S52: 1000
A53: 48 | B53: BENASQUE | C53: 4600 | E53: 4400 | F53: 6300 | I53: 14500 | L53: 10100 | M53: 9900 | N53: 12900 | Q53: 400 | S53: 800
A54: 49 | B54: BERANUY | C54: 4600 | E54: 4400 | F54: 6300 | I54: 14500 | L54: 10100 | M54: 9900 | N54: 12900 | Q54: 400 | S54: 800
A55: 50 | B55: BERBEGAL | G55: 4600 | I55: 14500 | L55: 15600 | M55: 15400 | N55: 18400 | Q55: 500 | R55: 1400 | S55: 1000
A56: 51 | B56: CANAL DE BERDUN | C56: 5800 | E56: 5500 | F56: 7500 | I56: 14500 | L56: 11200 | M56: 11000 | N56: 14000 | Q56: 500 | S56: 1000
A57: 52 | B57: BIELSA | C57: 4600 | E57: 4400 | F57: 6300 | I57: 14500 | L57: 10100 | M57: 9900 | N57: 12900 | Q57: 400 | S57: 800
A58: 53 | B58: BIERGE | G58: 5500 | I58: 14500 | L58: 12200 | M58: 11900 | N58: 15000 | Q58: 600 | R58: 1700 | S58: 1100
A59: 54 | B59: BIESCAS | C59: 5300 | E59: 5000 | F59: 6900 | I59: 14500 | L59: 10100 | M59: 9900 | N59: 12900 | Q59: 400 | S59: 900
A60: 55 | B60: BINACED | C60: 5000 | F60: 6600 | G60: 3900 | L60: 16800 | M60: 16600 | N60: 19600 | O60: 400 | P60: 400 | Q60: 400 | R60: 1200 | S60: 800
A61: 56 | B61: BINEFAR | C61: 5300 | F61: 6900 | G61: 4200 | L61: 16800 | M61: 16600 | N61: 19600 | O61: 400 | P61: 400 | Q61: 400 | R61: 1300 | S61: 900
A62: 57 | B62: BISAURRI | C62: 4600 | E62: 4400 | F62: 6300 | I62: 14500 | L62: 10100 | M62: 9900 | N62: 12900 | Q62: 400 | S62: 800
A63: 58 | B63: BISCARRUES | G63: 5300 | I63: 14500 | L63: 14500 | M63: 14200 | N63: 17300 | Q63: 500 | R63: 1700 | S63: 1100
A64: 59 | B64: BLECUA Y TORRES | G64: 5300 | I64: 14500 | L64: 12200 | M64: 11900 | N64: 15000 | Q64: 500 | R64: 1700 | S64: 1100
A65: 60 | B65: LA SOTONERA | G65: 5300 | I65: 14500 | L65: 12200 | M65: 11900 | N65: 15000 | Q65: 500 | R65: 1700 | S65: 1100
A66: 61 | B66: BOLTAÑA | C66: 5800 | E66: 5500 | F66: 7500 | I66: 14500 | L66: 11200 | M66: 11000 | N66: 14000 | Q66: 500 | S66: 1000
A67: 62 | B67: BONANSA | C67: 4600 | E67: 4400 | F67: 6300 | I67: 14500 | L67: 10100 | M67: 9900 | N67: 12900 | Q67: 400 | S67: 800
A68: 63 | B68: BORAU | C68: 5000 | E68: 4600 | F68: 6600 | I68: 14500 | L68: 10100 | M68: 9900 | N68: 12900 | Q68: 400 | S68: 800
A69: 64 | B69: BROTO | C69: 4600 | E69: 4400 | F69: 6300 | I69: 14500 | L69: 10100 | M69: 9900 | N69: 12900 | Q69: 400 | S69: 800
A70: 65 | B70: CAMPO | C70: 4600 | E70: 4400 | F70: 6300 | I70: 14500 | L70: 10100 | M70: 9900 | N70: 12900 | Q70: 400 | S70: 800
A71: 66 | B71: CAMPORRELLS | G71: 4200 | I71: 20800 | L71: 12200 | M71: 11900 | N71: 15000 | Q71: 400 | R71: 1300 | S71: 900
A72: 67 | B72: CANDASNOS | C72: 3200 | E72: 3000 | F72: 4800 | G72: 2100 | L72: 15600 | M72: 15400 | N72: 18400 | O72: 200 | P72: 200 | Q72: 200 | R72: 700 | S72: 400
A73: 68 | B73: CANFRANC | C73: 5000 | E73: 4600 | F73: 6600 | I73: 14500 | L73: 10100 | M73: 9900 | N73: 12900 | Q73: 400 | S73: 800
A74: 69 | B74: CAPDESASO | C74: 3500 | E74: 3300 | F74: 5200 | G74: 2400 | I74: 20800 | L74: 14500 | M74: 14200 | N74: 17300 | O74: 200 | P74: 200 | Q74: 200 | R74: 800 | S74: 600
A75: 70 | B75: CAPELLA | C75: 5800 | E75: 5500 | F75: 7500 | I75: 14500 | L75: 11200 | M75: 11000 | N75: 14000 | Q75: 500 | S75: 1000
A76: 71 | B76: CASBAS DE HUESCA | G76: 5800 | I76: 14500 | L76: 12200 | M76: 11900 | N76: 15000 | Q76: 600 | R76: 1800 | S76: 1200
A77: 72 | B77: CASTEJON DEL PUENTE | C77: 5300 | F77: 6900 | G77: 4200 | L77: 15600 | M77: 15400 | N77: 18400 | O77: 400 | P77: 400 | Q77: 400 | R77: 1300 | S77: 900
A78: 73 | B78: CASTEJON DE MONEGROS | C78: 3200 | E78: 3000 | F78: 4800 | G78: 2100 | I78: 20800 | L78: 15600 | M78: 15400 | N78: 18400 | O78: 200 | P78: 200 | Q78: 200 | R78: 700 | S78: 400
A79: 74 | B79: CASTEJON DE SOS | C79: 4600 | E79: 4400 | F79: 6300 | I79: 14500 | L79: 10100 | M79: 9900 | N79: 12900 | Q79: 400 | S79: 800
A80: 75 | B80: CASTELFLORITE | C80: 3500 | E80: 3300 | F80: 5200 | G80: 2400 | I80: 20800 | L80: 14500 | M80: 14200 | N80: 17300 | O80: 200 | P80: 200 | Q80: 200 | R80: 800 | S80: 600
A81: 76 | B81: CASTIELLO DE JACA | C81: 5500 | E81: 5300 | F81: 7200 | I81: 14500 | L81: 10100 | M81: 9900 | N81: 12900 | Q81: 400 | S81: 900
A82: 77 | B82: CASTIGALEU | C82: 5300 | E82: 5000 | F82: 6900 | I82: 14500 | L82: 10100 | M82: 9900 | N82: 12900 | Q82: 400 | S82: 900
A83: 78 | B83: CASTILLAZUELO | G83: 5100 | I83: 14500 | L83: 12200 | M83: 11900 | N83: 15000 | Q83: 500 | R83: 1500 | S83: 1100
A84: 79 | B84: CASTILLONROY | G84: 4200 | I84: 20800 | L84: 12200 | M84: 11900 | N84: 15000 | Q84: 400 | R84: 1300 | S84: 900
A85: 80 | B85: COLUNGO | C85: 4600 | E85: 5000 | F85: 6300 | I85: 14500 | L85: 11000 | M85: 10700 | N85: 13800 | Q85: 400 | S85: 800
A86: 81 | B86: CHALAMERA | C86: 3400 | E86: 3200 | F86: 5100 | G86: 2300 | L86: 13300 | M86: 13100 | N86: 16100 | O86: 200 | P86: 200 | Q86: 200 | R86: 800 | S86: 600
A87: 82 | B87: CHIA | C87: 4600 | E87: 4400 | F87: 6300 | I87: 14500 | L87: 10100 | M87: 9900 | N87: 12900 | Q87: 400 | S87: 800
A88: 83 | B88: CHIMILLAS | G88: 5800 | I88: 14500 | L88: 12200 | M88: 11900 | N88: 15000 | Q88: 600 | R88: 1800 | S88: 1200
A89: 84 | B89: ESPLUS | C89: 5000 | F89: 6600 | G89: 3900 | L89: 16800 | M89: 16600 | N89: 19600 | O89: 400 | P89: 400 | Q89: 400 | R89: 1200 | S89: 800
A90: 85 | B90: ESTADA | C90: 5700 | E90: 5500 | F90: 7400 | I90: 14500 | L90: 14500 | M90: 14200 | N90: 17300 | Q90: 500 | S90: 1000
A91: 86 | B91: ESTADILLA | G91: 4600 | I91: 14500 | L91: 15600 | M91: 15400 | N91: 18400 | Q91: 500 | R91: 1400 | S91: 1000
A92: 87 | B92: ESTOPIÑAN DEL CASTILLO | G92: 4200 | I92: 14500 | L92: 11200 | M92: 11000 | N92: 14000 | Q92: 400 | R92: 1300 | S92: 900
A93: 88 | B93: FAGO | C93: 5000 | E93: 4600 | F93: 6600 | I93: 14500 | L93: 10100 | M93: 9900 | N93: 12900 | Q93: 400 | S93: 800
A94: 89 | B94: FANLO | C94: 4600 | E94: 4400 | F94: 6300 | I94: 14500 | L94: 10100 | M94: 9900 | N94: 12900 | Q94: 400 | S94: 800
A95: 90 | B95: FISCAL | C95: 4600 | E95: 4400 | F95: 6300 | I95: 14500 | L95: 10100 | M95: 9900 | N95: 12900 | Q95: 400 | S95: 800
A96: 91 | B96: FONZ | G96: 4600 | I96: 14500 | L96: 15600 | M96: 15400 | N96: 18400 | Q96: 500 | R96: 1400 | S96: 1000
A97: 92 | B97: FORADADA DE TOSCAR | C97: 4600 | E97: 4400 | F97: 6300 | I97: 14500 | L97: 11200 | M97: 11000 | N97: 14000 | Q97: 400 | S97: 800
A98: 93 | B98: FRAGA | C98: 3400 | E98: 3200 | F98: 5100 | G98: 2300 | L98: 15600 | M98: 15400 | N98: 18400 | O98: 200 | P98: 200 | Q98: 200 | R98: 800 | S98: 600
A99: 94 | B99: GISTAIN | C99: 4600 | E99: 4400 | F99: 6300 | I99: 14500 | L99: 10100 | M99: 9900 | N99: 12900 | Q99: 400 | S99: 800
A100: 95 | B100: EL GRADO | C100: 5100 | E100: 5500 | F100: 6700 | I100: 14500 | L100: 14500 | M100: 14200 | N100: 17300 | Q100: 400 | S100: 900
A101: 96 | B101: GRAÑEN | C101: 4100 | E101: 3700 | F101: 5700 | G101: 3000 | I101: 14500 | L101: 14500 | M101: 14200 | N101: 17300 | O101: 300 | P101: 300 | Q101: 300 | R101: 900 | S101: 700
A102: 97 | B102: GRAUS | C102: 5800 | E102: 5500 | F102: 7500 | I102: 14500 | L102: 12300 | M102: 12000 | N102: 15100 | Q102: 500 | S102: 1000
A103: 98 | B103: GURREA DE GALLEGO | E103: 3900 | F103: 5800 | G103: 3100 | I103: 14500 | M103: 14200 | N103: 17300 | O103: 300 | P103: 300 | Q103: 300 | R103: 1000
A104: 99 | B104: VALLE DE HECHO | C104: 5000 | E104: 4600 | F104: 6600 | I104: 14500 | L104: 10100 | M104: 9900 | N104: 12900 | Q104: 400 | S104: 800
A105: 100 | B105: HOZ Y COSTEAN | C105: 5100 | E105: 5500 | F105: 6700 | I105: 14500 | L105: 12200 | M105: 11900 | N105: 15000 | Q105: 400 | S105: 900
A106: 101 | B106: HOZ DE JACA | C106: 5000 | E106: 4600 | F106: 6600 | I106: 14500 | L106: 10100 | M106: 9900 | N106: 12900 | Q106: 400 | S106: 800
A107: 102 | B107: SANTA MARIA DE DULCIS | G107: 5100 | I107: 14500 | L107: 12200 | M107: 11900 | N107: 15000 | Q107: 500 | R107: 1500 | S107: 1100
A108: 103 | B108: HUERTO | C108: 5000 | E108: 4600 | F108: 6600 | G108: 3900 | I108: 14500 | L108: 15600 | M108: 15400 | N108: 18400 | O108: 400 | P108: 400 | Q108: 400 | R108: 1200 | S108: 800
A109: 104 | B109: IBIECA | G109: 5300 | I109: 14500 | L109: 12200 | M109: 11900 | N109: 15000 | Q109: 500 | R109: 1700 | S109: 1100
A110: 105 | B110: IGRIES | G110: 5800 | I110: 14500 | L110: 12200 | M110: 11900 | N110: 15000 | Q110: 600 | R110: 1800 | S110: 1200
A111: 106 | B111: ILCHE | G111: 4200 | I111: 14500 | L111: 14500 | M111: 14200 | N111: 17300 | Q111: 400 | R111: 1300 | S111: 900
A112: 107 | B112: JACA | C112: 6700 | E112: 6400 | F112: 8400 | I112: 14500 | L112: 12300 | M112: 12000 | N112: 15100 | Q112: 600 | S112: 1200
A113: 108 | B113: JASA | C113: 5000 | E113: 4600 | F113: 6600 | I113: 14500 | L113: 10100 | M113: 9900 | N113: 12900 | Q113: 400 | S113: 800
A114: 109 | B114: LABUERDA | C114: 5500 | E114: 5300 | F114: 7200 | I114: 14500 | L114: 11200 | M114: 11000 | N114: 14000 | Q114: 400 | S114: 900
A115: 110 | B115: LALUENGA | G115: 4600 | I115: 14500 | L115: 15600 | M115: 15400 | N115: 18400 | Q115: 500 | R115: 1400 | S115: 1000
A116: 111 | B116: LALUEZA | C116: 3300 | E116: 3100 | F116: 5000 | G116: 2200 | I116: 20800 | L116: 15600 | M116: 15400 | N116: 18400 | O116: 200 | P116: 200 | Q116: 200 | R116: 700 | S116: 400
A117: 112 | B117: LANAJA | C117: 3200 | E117: 3000 | F117: 4800 | G117: 2100 | I117: 20800 | L117: 13300 | M117: 13100 | N117: 16100 | O117: 200 | P117: 200 | Q117: 200 | R117: 700 | S117: 400
A118: 113 | B118: LAPERDIGUERA | G118: 4600 | I118: 14500 | L118: 15600 | M118: 15400 | N118: 18400 | Q118: 500 | R118: 1400 | S118: 1000
A119: 114 | B119: LASCELLAS-PONZANO | G119: 5300 | I119: 14500 | L119: 12200 | M119: 11900 | N119: 15000 | Q119: 500 | R119: 1700 | S119: 1100
A120: 115 | B120: LASCUARRE | C120: 5300 | E120: 5000 | F120: 6900 | I120: 14500 | L120: 11200 | M120: 11000 | N120: 14000 | Q120: 400 | S120: 900
A121: 116 | B121: LASPAULES | C121: 4600 | E121: 4400 | F121: 6300 | I121: 14500 | L121: 10100 | M121: 9900 | N121: 12900 | Q121: 400 | S121: 800
A122: 117 | B122: LASPUÑA | C122: 4600 | E122: 4400 | F122: 6300 | I122: 14500 | L122: 10100 | M122: 9900 | N122: 12900 | Q122: 400 | S122: 800
A123: 118 | B123: LOARRE | G123: 5300 | I123: 14500 | L123: 12200 | M123: 11900 | N123: 15000 | Q123: 500 | R123: 1700 | S123: 1100
A124: 119 | B124: LOPORZANO | G124: 5800 | I124: 14500 | L124: 12200 | M124: 11900 | N124: 15000 | Q124: 600 | R124: 1800 | S124: 1200
A125: 120 | B125: LOSCORRALES | G125: 5300 | I125: 14500 | L125: 12200 | M125: 11900 | N125: 15000 | Q125: 500 | R125: 1700 | S125: 1100
A126: 121 | B126: LUPIÑEN-ORTILLA | G126: 5300 | I126: 14500 | L126: 12200 | M126: 11900 | N126: 15000 | Q126: 500 | R126: 1700 | S126: 1100
A127: 122 | B127: MONESMA Y CAJIGAR | C127: 4600 | E127: 4400 | F127: 6300 | I127: 14500 | L127: 11200 | M127: 11000 | N127: 14000 | Q127: 400 | S127: 800
A128: 123 | B128: MONFLORITE-LASCASAS | G128: 5300 | I128: 14500 | L128: 14500 | M128: 14200 | N128: 17300 | Q128: 500 | R128: 1700 | S128: 1100
A129: 124 | B129: MONTANUY | C129: 4600 | E129: 4400 | F129: 6300 | I129: 14500 | L129: 10100 | M129: 9900 | N129: 12900 | Q129: 400 | S129: 800
A130: 125 | B130: MONZON | C130: 5300 | F130: 6900 | G130: 4200 | L130: 16800 | M130: 16600 | N130: 19600 | O130: 400 | P130: 400 | Q130: 400 | R130: 1300 | S130: 900
A131: 126 | B131: NAVAL | C131: 5100 | E131: 4700 | F131: 6700 | I131: 14500 | L131: 12200 | M131: 11900 | N131: 15000 | Q131: 400 | S131: 900
A132: 127 | B132: NOVALES | G132: 5300 | I132: 14500 | L132: 14500 | M132: 14200 | N132: 17300 | Q132: 500 | R132: 1700 | S132: 1100
A133: 128 | B133: NUENO | C133: 6200 | E133: 5900 | F133: 7800 | I133: 14500 | L133: 12200 | M133: 11900 | N133: 15000 | Q133: 500 | S133: 1100
A134: 129 | B134: OLVENA | C134: 5100 | E134: 4700 | F134: 6700 | I134: 14500 | L134: 13300 | M134: 13100 | N134: 16100 | Q134: 400 | S134: 900
A135: 130 | B135: ONTIÑENA | C135: 3200 | E135: 3000 | F135: 4800 | G135: 2100 | I135: 20800 | L135: 15600 | M135: 15400 | N135: 18400 | O135: 200 | P135: 200 | Q135: 200 | R135: 700 | S135: 400
A136: 131 | B136: OSSO | C136: 3400 | E136: 3200 | F136: 5100 | G136: 2300 | L136: 15600 | M136: 15400 | N136: 18400 | O136: 200 | P136: 200 | Q136: 200 | R136: 800 | S136: 600
A137: 132 | B137: PALO | C137: 5800 | E137: 5500 | F137: 7500 | I137: 14500 | L137: 12300 | M137: 12000 | N137: 15100 | Q137: 500 | S137: 1000
A138: 133 | B138: PANTICOSA | C138: 5300 | E138: 5000 | F138: 6900 | I138: 14500 | L138: 10100 | M138: 9900 | N138: 12900 | Q138: 400 | S138: 900
A139: 134 | B139: PEÑALBA | C139: 3200 | E139: 3000 | F139: 4800 | G139: 2100 | I139: 20800 | L139: 15600 | M139: 15400 | N139: 18400 | O139: 200 | P139: 200 | Q139: 200 | R139: 700 | S139: 400
A140: 135 | B140: PERALTA DE ALCOFEA | C140: 5300 | E140: 5000 | F140: 6900 | G140: 4200 | I140: 20800 | L140: 15600 | M140: 15400 | N140: 18400 | O140: 400 | P140: 400 | Q140: 400 | R140: 1300 | S140: 900
A141: 136 | B141: PERALTA DE CALASANZ | G141: 4400 | I141: 20800 | L141: 12200 | M141: 11900 | N141: 15000 | Q141: 400 | R141: 1300 | S141: 900
A142: 137 | B142: PERALTILLA | G142: 5100 | I142: 14500 | L142: 15600 | M142: 15400 | N142: 18400 | Q142: 500 | R142: 1500 | S142: 1100
A143: 138 | B143: PERARRUA | C143: 5300 | E143: 5000 | F143: 6900 | I143: 14500 | L143: 11200 | M143: 11000 | N143: 14000 | Q143: 400 | S143: 900
A144: 139 | B144: PERTUSA | G144: 5300 | I144: 14500 | L144: 15600 | M144: 15400 | N144: 18400 | Q144: 500 | R144: 1700 | S144: 1100
A145: 140 | B145: PIRACES | G145: 4600 | I145: 14500 | L145: 15600 | M145: 15400 | N145: 18400 | Q145: 500 | R145: 1400 | S145: 1000
A146: 141 | B146: PLAN | C146: 4600 | E146: 4400 | F146: 6300 | I146: 14500 | L146: 10100 | M146: 9900 | N146: 12900 | Q146: 400 | S146: 800
A147: 142 | B147: POLEÑINO | C147: 3400 | E147: 3200 | F147: 5100 | G147: 2300 | I147: 20800 | L147: 15600 | M147: 15400 | N147: 18400 | O147: 200 | P147: 200 | Q147: 200 | R147: 800 | S147: 600
A148: 143 | B148: SAN MIGUEL DEL CINCA | C148: 5000 | F148: 6600 | G148: 3900 | L148: 14500 | M148: 14200 | N148: 17300 | O148: 400 | P148: 400 | Q148: 400 | R148: 1200 | S148: 800
A149: 144 | B149: POZAN DE VERO | G149: 5100 | I149: 14500 | L149: 12200 | M149: 11900 | N149: 15000 | Q149: 500 | R149: 1500 | S149: 1100
A150: 145 | B150: LA PUEBLA DE CASTRO | C150: 5300 | E150: 5000 | F150: 6900 | I150: 14500 | L150: 11200 | M150: 11000 | N150: 14000 | Q150: 400 | S150: 900
A151: 146 | B151: PUENTE DE MONTAÑANA | C151: 5300 | E151: 5000 | F151: 6900 | I151: 14500 | L151: 11200 | M151: 11000 | N151: 14000 | Q151: 400 | S151: 900
A152: 147 | B152: PUERTOLAS | C152: 4600 | E152: 4400 | F152: 6300 | I152: 14500 | L152: 10100 | M152: 9900 | N152: 12900 | Q152: 400 | S152: 800
A153: 148 | B153: PUEYO DE ARAGUAS | C153: 5500 | E153: 5300 | F153: 7200 | I153: 14500 | L153: 12300 | M153: 12000 | N153: 15100 | Q153: 400 | S153: 900
A154: 149 | B154: PUEYO DE SANTA CRUZ | C154: 5100 | F154: 6700 | G154: 4000 | L154: 15600 | M154: 15400 | N154: 18400 | O154: 400 | P154: 400 | Q154: 400 | R154: 1200 | S154: 900
A155: 150 | B155: QUICENA | G155: 5800 | I155: 14500 | L155: 14500 | M155: 14200 | N155: 17300 | Q155: 600 | R155: 1800 | S155: 1200
A156: 151 | B156: PEÑAS DE RIGLOS | C156: 4600 | E156: 5000 | F156: 6300 | I156: 14500 | L156: 12200 | M156: 11900 | N156: 15000 | Q156: 400 | S156: 800
A157: 152 | B157: ROBRES | C157: 3500 | E157: 3200 | F157: 5200 | G157: 2400 | I157: 14500 | L157: 13300 | M157: 13100 | N157: 16100 | O157: 200 | P157: 200 | Q157: 200 | R157: 800 | S157: 600
A158: 153 | B158: ISABENA | C158: 5300 | E158: 5000 | F158: 6900 | I158: 14500 | L158: 11200 | M158: 11000 | N158: 14000 | Q158: 400 | S158: 900
A159: 154 | B159: SABIÑANIGO | C159: 5800 | E159: 5500 | F159: 7500 | I159: 14500 | L159: 11200 | M159: 11000 | N159: 14000 | Q159: 500 | S159: 1000
A160: 155 | B160: SAHUN | C160: 4600 | E160: 4400 | F160: 6300 | I160: 14500 | L160: 10100 | M160: 9900 | N160: 12900 | Q160: 400 | S160: 800
A161: 156 | B161: SALAS ALTAS | G161: 5100 | I161: 14500 | L161: 13300 | M161: 13100 | N161: 16100 | Q161: 500 | R161: 1500 | S161: 1100
A162: 157 | B162: SALAS BAJAS | G162: 5100 | I162: 14500 | L162: 13300 | M162: 13100 | N162: 16100 | Q162: 500 | R162: 1500 | S162: 1100
A163: 158 | B163: SALILLAS | G163: 4600 | I163: 14500 | L163: 14500 | M163: 14200 | N163: 17300 | Q163: 500 | R163: 1400 | S163: 1000
A164: 159 | B164: SALLENT DE GALLEGO | C164: 5000 | E164: 4600 | F164: 6600 | I164: 14500 | L164: 10100 | M164: 9900 | N164: 12900 | Q164: 400 | S164: 800
A165: 160 | B165: SAN ESTEBAN DE LITERA | C165: 5700 | F165: 7400 | G165: 4600 | L165: 16800 | M165: 16600 | N165: 19600 | O165: 500 | P165: 500 | Q165: 500 | R165: 1400 | S165: 1000
A166: 161 | B166: SANGARREN | C166: 5700 | E166: 5500 | F166: 7400 | G166: 4600 | I166: 14500 | L166: 14500 | M166: 14200 | N166: 17300 | O166: 500 | P166: 500 | Q166: 500 | R166: 1400 | S166: 1000
A167: 162 | B167: SAN JUAN DE PLAN | C167: 4600 | E167: 4400 | F167: 6300 | I167: 14500 | L167: 10100 | M167: 9900 | N167: 12900 | Q167: 400 | S167: 800
A168: 163 | B168: SANTA CILIA | C168: 5800 | E168: 5500 | F168: 7500 | I168: 14500 | L168: 11200 | M168: 11000 | N168: 14000 | Q168: 500 | S168: 1000
A169: 164 | B169: SANTA CRUZ DE LA SEROS | C169: 5800 | E169: 5500 | F169: 7500 | I169: 14500 | L169: 11200 | M169: 11000 | N169: 14000 | Q169: 500 | S169: 1000
A170: 165 | B170: PUENTE LA REINA | C170: 5800 | E170: 5500 | F170: 7500 | I170: 14500 | L170: 11200 | M170: 11000 | N170: 14000 | Q170: 500 | S170: 1000
A171: 166 | B171: SANTA LIESTRA Y SAN QUILEZ | C171: 4600 | E171: 4400 | F171: 6300 | I171: 14500 | L171: 10100 | M171: 9900 | N171: 12900 | Q171: 400 | S171: 800
A172: 167 | B172: SARIÑENA | C172: 3400 | E172: 3200 | F172: 5100 | G172: 2300 | I172: 20800 | L172: 15600 | M172: 15400 | N172: 18400 | O172: 200 | P172: 200 | Q172: 200 | R172: 800 | S172: 600
A173: 168 | B173: SECASTILLA | C173: 5300 | E173: 5000 | F173: 6900 | I173: 14500 | L173: 11200 | M173: 11000 | N173: 14000 | Q173: 400 | S173: 900
A174: 169 | B174: SEIRA | C174: 4600 | E174: 4400 | F174: 6300 | I174: 14500 | L174: 10100 | M174: 9900 | N174: 12900 | Q174: 400 | S174: 800
A175: 170 | B175: SENA | C175: 3200 | E175: 3000 | F175: 4800 | G175: 2100 | I175: 20800 | L175: 15600 | M175: 15400 | N175: 18400 | O175: 200 | P175: 200 | Q175: 200 | R175: 700 | S175: 400
A176: 171 | B176: SENES DE ALCUBIERRE | C176: 3500 | E176: 3200 | F176: 5200 | G176: 2400 | I176: 14500 | L176: 13300 | M176: 13100 | N176: 16100 | O176: 200 | P176: 200 | Q176: 200 | R176: 800 | S176: 600
A177: 172 | B177: SESA | G177: 4600 | I177: 14500 | L177: 13300 | M177: 13100 | N177: 16100 | Q177: 500 | R177: 1400 | S177: 1000
A178: 173 | B178: SESUE | C178: 4600 | E178: 4400 | F178: 6300 | I178: 14500 | L178: 10100 | M178: 9900 | N178: 12900 | Q178: 400 | S178: 800
A179: 174 | B179: SIETAMO | G179: 5800 | I179: 14500 | L179: 12200 | M179: 11900 | N179: 15000 | Q179: 600 | R179: 1800 | S179: 1200
A180: 175 | B180: SOPEIRA | C180: 4600 | E180: 4400 | F180: 6300 | I180: 14500 | L180: 10100 | M180: 9900 | N180: 12900 | Q180: 400 | S180: 800
A181: 176 | B181: TAMARITE DE LITERA | C181: 5300 | F181: 6900 | G181: 4200 | L181: 16800 | M181: 16600 | N181: 19600 | O181: 400 | P181: 400 | Q181: 400 | R181: 1300 | S181: 900
A182: 177 | B182: TARDIENTA | C182: 3900 | E182: 3500 | F182: 5500 | G182: 2800 | I182: 14500 | L182: 13300 | M182: 13100 | N182: 16100 | O182: 300 | P182: 300 | Q182: 300 | R182: 900 | S182: 600
A183: 178 | B183: TELLA-SIN | C183: 4600 | E183: 4400 | F183: 6300 | I183: 14500 | L183: 10100 | M183: 9900 | N183: 12900 | Q183: 400 | S183: 800
A184: 179 | B184: TIERZ | G184: 5800 | I184: 14500 | L184: 14500 | M184: 14200 | N184: 17300 | Q184: 600 | R184: 1800 | S184: 1200
A185: 180 | B185: TOLVA | C185: 5300 | E185: 5000 | F185: 6900 | I185: 14500 | L185: 11200 | M185: 11000 | N185: 14000 | Q185: 400 | S185: 900
A186: 181 | B186: TORLA | C186: 4600 | E186: 4400 | F186: 6300 | I186: 14500 | L186: 10100 | M186: 9900 | N186: 12900 | Q186: 400 | S186: 800
A187: 182 | B187: TORRALBA DE ARAGON | C187: 3900 | E187: 3500 | F187: 5500 | G187: 2800 | I187: 14500 | L187: 13300 | M187: 13100 | N187: 16100 | O187: 300 | P187: 300 | Q187: 300 | R187: 900 | S187: 600
A188: 183 | B188: TORRE LA RIBERA | C188: 4600 | E188: 4400 | F188: 6300 | I188: 14500 | L188: 10100 | M188: 9900 | N188: 12900 | Q188: 400 | S188: 800
A189: 184 | B189: TORRENTE DE CINCA | C189: 3400 | E189: 3200 | F189: 5100 | G189: 2300 | L189: 15600 | M189: 15400 | N189: 18400 | O189: 200 | P189: 200 | Q189: 200 | R189: 800 | S189: 600
A190: 185 | B190: TORRES DE ALCANADRE | G190: 4800 | I190: 14500 | L190: 15600 | M190: 15400 | N190: 18400 | Q190: 500 | R190: 1500 | S190: 1000
A191: 186 | B191: TORRES DE BARBUES | C191: 5300 | E191: 5100 | F191: 6900 | G191: 4200 | I191: 14500 | L191: 14500 | M191: 14200 | N191: 17300 | O191: 400 | P191: 400 | Q191: 400 | R191: 1300 | S191: 900
A192: 187 | B192: TRAMACED | C192: 5300 | E192: 5000 | F192: 6900 | G192: 4200 | I192: 14500 | L192: 15600 | M192: 15400 | N192: 18400 | O192: 400 | P192: 400 | Q192: 400 | R192: 1300 | S192: 900
A193: 188 | B193: VALFARTA | C193: 3200 | E193: 3000 | F193: 4800 | G193: 2100 | I193: 20800 | L193: 15600 | M193: 15400 | N193: 18400 | O193: 200 | P193: 200 | Q193: 200 | R193: 700 | S193: 400
A194: 189 | B194: VALLE DE BARDAGI | C194: 4600 | E194: 4400 | F194: 6300 | I194: 14500 | L194: 10100 | M194: 9900 | N194: 12900 | Q194: 400 | S194: 800
A195: 190 | B195: VALLE DE LIERP | C195: 4600 | E195: 4400 | F195: 6300 | I195: 14500 | L195: 10100 | M195: 9900 | N195: 12900 | Q195: 400 | S195: 800
A196: 191 | B196: VELILLA DE CINCA | C196: 3400 | E196: 3200 | F196: 5100 | G196: 2300 | L196: 15600 | M196: 15400 | N196: 18400 | O196: 200 | P196: 200 | Q196: 200 | R196: 800 | S196: 600
A197: 192 | B197: VIACAMP Y LITERA | C197: 4600 | E197: 4400 | F197: 6300 | I197: 14500 | L197: 10100 | M197: 9900 | N197: 12900 | Q197: 400 | S197: 800
A198: 193 | B198: VICIEN | G198: 4600 | I198: 14500 | L198: 15600 | M198: 15400 | N198: 18400 | Q198: 500 | R198: 1400 | S198: 1000
A199: 194 | B199: VILLANOVA | C199: 4600 | E199: 4400 | F199: 6300 | I199: 14500 | L199: 10100 | M199: 9900 | N199: 12900 | Q199: 400 | S199: 800
A200: 195 | B200: VILLANUA | C200: 5000 | E200: 4600 | F200: 6600 | I200: 14500 | L200: 10100 | M200: 9900 | N200: 12900 | Q200: 400 | S200: 800
... 7 more rows

Sheet NORMAS
B3: NORMAS DE APLICACIÓN DE LOS VALORES MINIMOS INFORMATIVOS
B4: La Ley 11/2021, de 9 de julio, de medidas de prevención y lucha contra el fraude fiscal y de transposición de la Directiva (EU) 2016/1164, ha introducido
B5: importantes novedades, entre ellas, el denominado “valor de referencia” como concepto determinante de la base imponible en el impuesto de Transmisiones
B6: Patrimoniales y Actos Jurídicos Documentados, en el impuesto de Sucesiones y Donaciones, y en el impuesto sobre el Patrimonio. En el caso de no existir
B7: el citado valor de referencia a la fecha de devengo, la base imponible será el valor de mercado.
B10: Se publican estos valores mínimos informativos a efectos de lo previsto en la RESOLUCIÓN de 21 de diciembre de 2021, del Director General de Tributos,
B11: por la que se dictan instrucciones sobre el suministro de información de valores de bienes inmuebles que vayan a ser objeto de adquisición o transmisión
B12: en el ámbito de la Comunidad Autónoma de Aragón, a los efectos de liquidación de los impuestos de Transmisiones Patrimoniales y Actos Jurídicos
B13: Documentados y de Sucesiones y Donaciones. Ver en esta misma página web.
B15: En el caso de que no exista valor de referencia para un bien inmueble concreto puede solicitar una valoración individualizada del mismo solicitando una
B16: Información del valor con carácter previo a su adquisición o transmisión a efectos de los Impuestos de Transmisiones Patrimoniales y Actos
B17: Jurídicos Documentales y de Sucesiones y Donaciones.
B19: Estos Informes pueden solicitarse en la Dirección General de Tributos o en las Subdirecciones Provinciales de Huesca y Teruel, preferentemente de forma
B20: telématica.
B22: Para más información puede consultarse la siguiente página web: https://www.aragon.es/-/procedimiento-de-valoracion-de-previa-de-bienes-inmuebles
B25: RUSTICA. Año 2025

Sheet MANEJO DE LAS TABLAS
B1: MANEJO DE LAS TABLAS
B3: Las tablas vienen ordenadas por provincias
B5: En cada provincia aparecen los Términos Municipales ordenados alfabéticamente
B7: En las tablas aparecen los valores medios de la tierra, en Euros por hectárea (Euros/ha) según los
B8: diferentes tipos de aprovechamiento, identificados con los Códigos del cuadro adjunto.
B10: Para obtener el valor de una finca, se busca en la tabla el Término Municipal dentro de la
B11: provincia correspondiente. Se busca el código con arreglo al aprovechamiento de la finca (Labor
B12: secano, Almendro secano, etc.) y obtenemos el precio unitario en Euros/ha. Para obtener el va-
B13: lor total multiplicamos por el número de hectáreas que tenga la finca a valorar. Cuando existan
B14: varios tipos de aprovechamiento se buscarán los correspondientes valores y se multiplicará el
B15: valor de cada tipo por su superficie. Cuando sumamos los resultados parciales obtenemos el valor
B16: total de la finca. Las equivalencias de las unidades de superficie son las siguientes.
C18: 1 Hectárea = 10.000 metros cuadrados
C19: 1 Área= 100 metros cuadrados
C20: 1 Centiárea = 1 metro cuadrado
C22: Tipo de aprovechamiento | D22: Código
C23: Almendro secano | D23: AM
C24: Almendro regadio | D24: AR
C25: Labor secano | D25: C
C26: Labor regadío | D26: CR
C27: Erial a pastos | D27: EP
C28: Frutales de secano | D28: F
C29: Haya | D29: FH
C30: Frutales de regadío | D30: FR
C31: Huerta regadío | D31: HR
C32: Improductivo | D32: I
C33: Monte bajo | D33: MB
C34: Pinar maderable | D34: MM
C35: Matorral | D35: MT
C36: Olivos secano | D36: O
C37: Olivor regadío | D37: OR
C38: Prados | D38: PD
C39: Prado regadío | D39: PR
C40: Arboles de ribera | D40: RI
C41: Viña secano | D41: V
C42: Viñedo regadío | D42: VR

Sheet HUESCA 2025
B2: Provincia de HUESCA
B3: VER LAS NORMAS DE APLICACIÓN DE VALORES MINIMOS INFORMATIVOS
B4: 2025 | D4: Precios aplicables a fincas rústicas en Euros por hectárea
B5: MUNICIPIO | C5: Secanos | H5: Regadíos | M5: No cultivables
C6: AM-F | D6: C | E6: O | F6: V | G6: PD | H6: CR | I6: FR | J6: AR | K6: OR | L6: VR | M6: E | N6: MB | O6: MT | P6: MM | Q6: RI
B7: VALORES € /Ha. | C7: =IF(VLOOKUP(VALORES_HU!$T$6,TABLA_HU,3)=0,"",VLOOKUP(VALORES_HU!$T$6,TABLA_HU,3)) ->  | D7: =IF(VLOOKUP(VALORES_HU!$T$6,TABLA_HU,4)=0,"",VLOOKUP(VALORES_HU!$T$6,TABLA_HU,4)) ->  | E7: =IF(VLOOKUP(VALORES_HU!$T$6,TABLA_HU,5)=0,"",VLOOKUP(VALORES_HU!$T$6,TABLA_HU,5)) ->  | F7: =IF(VLOOKUP(VALORES_HU!$T$6,TABLA_HU,6)=0,"",VLOOKUP(VALORES_HU!$T$6,TABLA_HU,6)) ->  | G7: =IF(VLOOKUP(VALORES_HU!$T$6,TABLA_HU,7)=0,"",VLOOKUP(VALORES_HU!$T$6,TABLA_HU,7)) -> 5500 | H7: =IF(VLOOKUP(VALORES_HU!$T$6,TABLA_HU,8)=0,"",VLOOKUP(VALORES_HU!$T$6,TABLA_HU,8)) ->  | I7: =IF(VLOOKUP(VALORES_HU!$T$6,TABLA_HU,9)=0,"",VLOOKUP(VALORES_HU!$T$6,TABLA_HU,9)) -> 14500 | J7: =IF(VLOOKUP(VALORES_HU!$T$6,TABLA_HU,12)=0,"",VLOOKUP(VALORES_HU!$T$6,TABLA_HU,12)) -> 12200 | K7: =IF(VLOOKUP(VALORES_HU!$T$6,TABLA_HU,13)=0,"",VLOOKUP(VALORES_HU!$T$6,TABLA_HU,13)) -> 11900 | L7: =IF(VLOOKUP(VALORES_HU!$T$6,TABLA_HU,14)=0,"",VLOOKUP(VALORES_HU!$T$6,TABLA_HU,14)) -> 15000 | M7: =IF(VLOOKUP(VALORES_HU!$T$6,TABLA_HU,15)=0,"",VLOOKUP(VALORES_HU!$T$6,TABLA_HU,15)) ->  | N7: =IF(VLOOKUP(VALORES_HU!$T$6,TABLA_HU,16)=0,"",VLOOKUP(VALORES_HU!$T$6,TABLA_HU,16)) ->  | O7: =IF(VLOOKUP(VALORES_HU!$T$6,TABLA_HU,17)=0,"",VLOOKUP(VALORES_HU!$T$6,TABLA_HU,17)) -> 600 | P7: =IF(VLOOKUP(VALORES_HU!$T$6,TABLA_HU,18)=0,"",VLOOKUP(VALORES_HU!$T$6,TABLA_HU,18)) -> 1700 | Q7: =IF(VLOOKUP(VALORES_HU!$T$6,TABLA_HU,19)=0,"",VLOOKUP(VALORES_HU!$T$6,TABLA_HU,19)) -> 1100
B9: ACLARACIONES. (SOLO utilizar para fincas SIN Valor de Referencia del Catastro)
B10: PLANTACIONES DE CARRASCAS TRUFERAS (FRONDOSAS MICORRIZADAS), CUALQUIERA QUE SEA SU CALIFICACION EN
B11: CATASTRO (MB, C, AM, etc.). Se valorarán de forma individualizada y de acuerdo con sus características particulares (densidad y año
B12: de plantación, secano o regadío, vallado…)
B13: En las parcelas de regadío equipadas con sistemas de riego automatizado, el valor de labor de regadío es de 18.000 Euros/ha
B14: Parcelas incluidas en Zonas de Interes Nacional, PEBEAS y Regadíos Sociales en transformación, el valor por ha será 2,50 veces el valor
B15: de secano (TAS) correspondiente de la ATH del IAMIR (Informe Anual del Mercado Inmobiliario Rústico. Sede Electrónica del Catastro).
B16: Para las Referencias Catastrales con calificación RI "árboles de ribera", habrá que distinguir:
B17: a.- parcela NO CULTIVADA, se aplica el valor minimo informativo asignado a RI
B18: b.- PLANTACIONES DE CHOPOS. Aplicar el 80% del valor de regadío (TAR) correspondiente de la ATH del IAMIR antes mencionado.

Sheet ZARAGOZA 2025
B2: Provincia de ZARAGOZA
B3: VER LAS NORMAS DE APLICACIÓN DE VALORES MINIMOS INFORMATIVOS
B4: 2025 | D4: Precios aplicables a fincas rústicas en Euros por hectárea
B5: MUNICIPIO | C5: Secanos | H5: Regadíos | M5: No cultivables
C6: AM-F | D6: C | E6: O | F6: V | G6: PD | H6: CR | I6: FR | J6: AR | K6: OR | L6: VR | M6: EP | N6: MB-MT | O6: MM | P6: RI
B7: VALORES € /Ha. | C7: =IF(VLOOKUP(VALORES_ZA!$U$2,TABLA_ZA,3)=0,"",VLOOKUP(VALORES_ZA!$U$2,TABLA_ZA,3)) ->  | D7: =IF(VLOOKUP(VALORES_ZA!$U$2,TABLA_ZA,4)=0,"",VLOOKUP(VALORES_ZA!$U$2,TABLA_ZA,4)) ->  | E7: =IF(VLOOKUP(VALORES_ZA!$U$2,TABLA_ZA,5)=0,"",VLOOKUP(VALORES_ZA!$U$2,TABLA_ZA,5)) ->  | F7: =IF(VLOOKUP(VALORES_ZA!$U$2,TABLA_ZA,6)=0,"",VLOOKUP(VALORES_ZA!$U$2,TABLA_ZA,6)) ->  | G7: =IF(VLOOKUP(VALORES_ZA!$U$2,TABLA_ZA,7)=0,"",VLOOKUP(VALORES_ZA!$U$2,TABLA_ZA,7)) ->  | H7: =IF(VLOOKUP(VALORES_ZA!$U$2,TABLA_ZA,8)=0,"",VLOOKUP(VALORES_ZA!$U$2,TABLA_ZA,8)) ->  | I7: =IF(VLOOKUP(VALORES_ZA!$U$2,TABLA_ZA,9)=0,"",VLOOKUP(VALORES_ZA!$U$2,TABLA_ZA,9)) ->  | J7: =IF(VLOOKUP(VALORES_ZA!$U$2,TABLA_ZA,10)=0,"",VLOOKUP(VALORES_ZA!$U$2,TABLA_ZA,10)) ->  | K7: =IF(VLOOKUP(VALORES_ZA!$U$2,TABLA_ZA,11)=0,"",VLOOKUP(VALORES_ZA!$U$2,TABLA_ZA,11)) ->  | L7: =IF(VLOOKUP(VALORES_ZA!$U$2,TABLA_ZA,12)=0,"",VLOOKUP(VALORES_ZA!$U$2,TABLA_ZA,12)) ->  | M7: =IF(VLOOKUP(VALORES_ZA!$U$2,TABLA_ZA,14)=0,"",VLOOKUP(VALORES_ZA!$U$2,TABLA_ZA,14)) ->  | N7: =IF(VLOOKUP(VALORES_ZA!$U$2,TABLA_ZA,15)=0,"",VLOOKUP(VALORES_ZA!$U$2,TABLA_ZA,15)) ->  | O7: =IF(VLOOKUP(VALORES_ZA!$U$2,TABLA_ZA,16)=0,"",VLOOKUP(VALORES_ZA!$U$2,TABLA_ZA,16)) -> 1000 | P7: =IF(VLOOKUP(VALORES_ZA!$U$2,TABLA_ZA,17)=0,"",VLOOKUP(VALORES_ZA!$U$2,TABLA_ZA,17)) -> 750
B9: ACLARACIONES. (SOLO utilizar para fincas SIN Valor de Referencia del Catastro)
B10: PLANTACIONES DE CARRASCAS TRUFERAS (FRONDOSAS MICORRIZADAS), CUALQUIERA QUE SEA SU CALIFICACION EN
B11: CATASTRO (MB, C, AM, etc.). Se valorarán de forma individualizada y de acuerdo con sus características particulares (densidad y año
B12: de plantación, secano o regadío, vallado…)
B13: En las parcelas de regadío equipadas con sistemas de riego automatizado, el valor de labor de regadío es de 18.000 Euros/ha
B14: Parcelas incluidas en Zonas de Interes Nacional, PEBEAS y Regadíos Sociales en transformación, el valor por ha será 2,50 veces el valor
B15: de secano (TAS) correspondiente de la ATH del IAMIR (Informe Anual del Mercado Inmobiliario Rústico. Sede Electrónica del Catastro).
B16: Para las Referencias Catastrales con calificación RI "árboles de ribera", habrá que distinguir:
B17: a.- parcela NO CULTIVADA, se aplica el valor minimo informativo asignado a RI
B18: b.- PLANTACIONES DE CHOPOS. Aplicar el 80% del valor de regadío (TAR) correspondiente de la ATH del IAMIR antes mencionado.

Sheet TERUEL 2025
B2: Provincia de TERUEL
B3: VER LAS NORMAS DE APLICACIÓN DE VALORES MINIMOS INFORMATIVOS
B4: 2025 | D4: Precios aplicables a fincas rústicas en Euros por hectárea
B5: MUNICIPIO | C5: Secanos | G5: Regadíos | L5: No cultivables
C6: AM-F | D6: C | E6: O | F6: V | G6: CR | H6: FR | I6: AR | J6: OR | K6: VR | L6: EP | M6: MB-MT | N6: MM | O6: RI
B7: VALORES € /Ha. | C7: =IF(VLOOKUP(VALORES_TE!$P$5,TABLA_TE,3)=0,"",VLOOKUP(VALORES_TE!$P$5,TABLA_TE,3)) ->  | D7: =IF(VLOOKUP(VALORES_TE!$P$5,TABLA_TE,4)=0,"",VLOOKUP(VALORES_TE!$P$5,TABLA_TE,4)) ->  | E7: =IF(VLOOKUP(VALORES_TE!$P$5,TABLA_TE,5)=0,"",VLOOKUP(VALORES_TE!$P$5,TABLA_TE,5)) ->  | F7: =IF(VLOOKUP(VALORES_TE!$P$5,TABLA_TE,6)=0,"",VLOOKUP(VALORES_TE!$P$5,TABLA_TE,6)) ->  | G7: =IF(VLOOKUP(VALORES_TE!$P$5,TABLA_TE,7)=0,"",VLOOKUP(VALORES_TE!$P$5,TABLA_TE,7)) ->  | H7: =IF(VLOOKUP(VALORES_TE!$P$5,TABLA_TE,8)=0,"",VLOOKUP(VALORES_TE!$P$5,TABLA_TE,8)) ->  | I7: =IF(VLOOKUP(VALORES_TE!$P$5,TABLA_TE,9)=0,"",VLOOKUP(VALORES_TE!$P$5,TABLA_TE,9)) ->  | J7: =IF(VLOOKUP(VALORES_TE!$P$5,TABLA_TE,10)=0,"",VLOOKUP(VALORES_TE!$P$5,TABLA_TE,10)) ->  | K7: =IF(VLOOKUP(VALORES_TE!$P$5,TABLA_TE,11)=0,"",VLOOKUP(VALORES_TE!$P$5,TABLA_TE,11)) ->  | L7: =IF(VLOOKUP(VALORES_TE!$P$5,TABLA_TE,12)=0,"",VLOOKUP(VALORES_TE!$P$5,TABLA_TE,12)) ->  | M7: =IF(VLOOKUP(VALORES_TE!$P$5,TABLA_TE,13)=0,"",VLOOKUP(VALORES_TE!$P$5,TABLA_TE,13)) ->  | N7: =IF(VLOOKUP(VALORES_TE!$P$5,TABLA_TE,14)=0,"",VLOOKUP(VALORES_TE!$P$5,TABLA_TE,14)) ->  | O7: =IF(VLOOKUP(VALORES_TE!$P$5,TABLA_TE,15)=0,"",VLOOKUP(VALORES_TE!$P$5,TABLA_TE,15)) -> 580
B9: ACLARACIONES. (SOLO utilizar para fincas SIN Valor de Referencia del Catastro)
B10: PLANTACIONES DE CARRASCAS TRUFERAS (FRONDOSAS MICORRIZADAS), CUALQUIERA QUE SEA SU CALIFICACION EN
B11: CATASTRO (MB, C, AM, etc.). Se valorarán de forma individualizada y de acuerdo con sus características particulares (densidad y año
B12: de plantación, secano o regadío, vallado…)
B13: En las parcelas de regadío equipadas con sistemas de riego automatizado, el valor de labor de regadío es de 18.000 Euros/ha
B14: Parcelas incluidas en Zonas de Interes Nacional, PEBEAS y Regadíos Sociales en transformación, el valor por ha será 2,50 veces el valor
B15: de secano (TAS) correspondiente de la ATH del IAMIR (Informe Anual del Mercado Inmobiliario Rústico. Sede Electrónica del Catastro).
B16: Para las Referencias Catastrales con calificación RI "árboles de ribera", habrá que distinguir:
B17: a.- parcela NO CULTIVADA, se aplica el valor minimo informativo asignado a RI
B18: b.- PLANTACIONES DE CHOPOS. Aplicar el 80% del valor de regadío (TAR) correspondiente de la ATH del IAMIR antes mencionado.
